{"text_format":"1","workbook":"xlsx","n_sheets":10,"sheets":["PAGE0","PAGE0.1","PAGE1","PAGE1.1","PAGE2","PAGE3","PAGE4","PAGE5","Tabelas","DetalhesC"],"not_rendered":{"charts":0,"images":25,"macros":1,"external_links":0,"defined_names":26,"comments":1,"pivot_tables":0},"unopened":[],"bounds":{"document_bytes":16777216,"sheet_cells":100000,"rows_first":2000,"rows_last":500,"rows_between":2000,"halvings":0,"cell_chars":16384,"cell_head_chars":4096},"cells_cut":0,"cells_raw":0,"read":"whole","date_system":"1900"}

{"sheet":"PAGE0","index":0,"n_rows":21,"n_cols":12,"rows_kept":21,"cut":false,"hidden":false,"merged":[[19,2,20,5],[20,11,20,12],[2,2,2,10],[5,8,5,10],[8,6,8,11],[9,6,13,11],[19,11,19,12]]}
[]
[]
[]
[]
[]
[]
[]
[]
[null,null,null,null,null,null,"Aplicação:"]
[null,null,null,null,null,null,"Centro de Medição Coletiva até 24 medições, com demanda total até 50 kVA, para categorias M1, B1 e T1 (tensão 220/127V)  ou M3 e T6, para tensão 380/220V.  O centro de medição deverá ser único e estar agrupado com o barramento e o disjuntor."]
[]
[]
[]
[]
[]
[]
[]
[]
[]
[null,null,"Obs.: Necessário permitir execução de macros \npara possibilitar algumas funções automáticas."]
[null,null,null,null,null,null,null,null,null,null,null,"Versão 1.0 (Dsantos)"]

{"sheet":"PAGE0.1","index":1,"n_rows":148,"n_cols":12,"rows_kept":148,"cut":false,"hidden":false,"merged":[[147,11,147,12],[18,3,18,10],[19,3,19,10],[67,3,85,10],[86,3,88,10],[89,3,89,10],[90,3,106,10],[107,3,110,10],[128,3,141,10],[142,3,142,10],[143,3,144,10],[111,3,112,10],[2,2,2,10],[5,3,5,10],[15,3,15,10],[66,3,66,10],[16,3,16,10],[10,3,10,4],[10,5,10,10],[22,3,35,10],[36,3,55,10],[17,3,17,10],[11,3,11,10],[12,3,12,10],[8,5,8,10],[9,3,9,4],[9,5,9,10],[6,3,7,10],[8,3,8,4],[56,3,65,10],[147,5,147,8],[115,3,126,10],[127,3,127,10],[21,3,21,10],[114,3,114,10]]}
[]
[]
[]
[]
[]
[null,null,null,"Informações Para Apresentação do Projeto"]
[null,null,null,"Enviar o Relatório em Excel (xls) devidamente preenchido, juntamente com a respectiva \nART/TRT, preenchida no campo 5 \"observação\", com texto padronizado, solicitanto a abertura da Solicitação de Serviço (SS) através do canal abaixo"]
[]
[null,null,null,"Apresentação do Projeto",null,"https://agencia.neoenergiaelektro.com.br/login.aspx"]
[null,null,null,"Normas ",null,"https://www.neoenergia.com/web/sp/normas-tecnicas"]
[null,null,null,"Formulários",null,"https://www.neoenergia.com/web/sp/seu-negocio/projeto-particular"]
[null,null,null,"Em caso de dúvidas consultar:"]
[null,null,null,"analise.projetos@elektro.com.br"]
[]
[]
[null,null,null,"Normas Utilizadas"]
[]
[null,null,null,"DIS-NOR-030 – Fornecimento de Energia Elétrica em Tensão Secundária de Distribuição a Edificações Individuais;"]
[null,null,null,"DIS-NOR-053 - Fornecimento de Energ​ia Elétrica à Edificações com Múltiplas Unidades Consumidoras;"]
[null,null,null,"DIS-ETE-145 - Caixas para Medição de Energia Elétrica de Unidades Consumidoras."]
[]
[null,null,null,"Informações para Preenchiemnto "]
[null,null,null,"\n1. Todos os campos preenchidos em cinza, são de preenchimento obrigatório pelo usuário. O não preenchimento poderá acarretar devoluções para correção ao solicitante, além de inconscistências no relatório, pois os campos em branco possuem cálculos automáticos que dependem das inserções do usuário.\nEx."]
[]
[]
[]
[]
[]
[]
[]
[]
[]
[]
[]
[]
[]
[null,null,null,"2. Item 3 - Quadro de Medição e Proteção (QM)\n\n2.1. Campo: 3.1 - Quantidade de Unidades Consumidoras:\nConforme a norma DIS-NOR-053, os projetos de centro de medição coletiva isento de projeto, são limitados a 24 medições, agrupadas em  1(um) centro de medição, agrupadas também com o barramento e o disjuntor de proteção geral. \nNota: Para instalações que necessitem de quantidades superiores de medição, deverá ser apresentado o projeto completo, através, através do canal adequado (agência virtual).\n\n2.2. Campo: 3.3 - Dados do Quadro de Medição, Proteção e Barramento: \nNesse campo será necessário ao usuário informar tão somente o material utilizado no quadro (ex. policarbonato) e a demanda calculada total do empreendimento (demanda de agrupamento). O formulário efetuará o dimensionamento do agrupamento, conforme os critérios da Tabela 5 do Anexo II da norma DIS-NOR-053.\n\nA demanda total do empreendimento com múltimpas unidades consumidoras, expreessa em kVA, é a soma das demandas residenciais (apartamentos e casas), comerciais e serviços  e da área comum (admnistração ou condomínio), devendo ser calculada conforme o Anexo I da norma DIS-NOR-053.\n\nAtentar que, para o cálculo de residenciais (casas ou apartamentos), deverá observar o método da área útil (Quadro 35), aplicando-se o Fator de Coincidência, em função do número de apartamentos/casas (Quadro 36), e por fim aplicando-se o Fator de Segurança, obitida no Quadro 37.\n\nPara calculo da demanda de comerciais, serviços e área comum, utilizar o método da carga instalada, conforme a norma DIS-NOR-030.\n\nA entrada será dimensionada, conforme o cálculo de demanda total apresentado."]
[]
[]
[]
[]
[]
[]
[]
[]
[]
[]
[]
[]
[]
[]
[]
[]
[]
[]
[]
[null,null,null,"\n2.3. Campo: 3.4 Detalhes Construtivos do Centro de Medição. \n\nTrata-se de orientativo para construção do centro de medição.\n\nNota: Independente do agrupamento, não pode existir mais de 4 (quatro) caixas de medição na mesma linha em qualquer lado de barramento.\n\n\nVide que para centros até 12 medições, há algumas particularidades no normativo. O barramento poderá ficar em uma única Caixa Direta, e o disjuntor, barramento de fases e barramento de neutro, poderá ficar centralizado entre as caixas de medição ou lateralmente aos mesmos. Lembrando que não poderá existir mais que quatro grupos de caixa lateralmente aos barramentos. "]
[]
[]
[]
[]
[]
[]
[]
[]
[]
[null,null,null,"Exemplo: Barramento em uma única caixa direta (até 12 medições)"]
[]
[]
[]
[]
[]
[]
[]
[]
[]
[]
[]
[]
[]
[]
[]
[]
[]
[]
[]
[null,null,null,"Para centros com número de medição superior a 12, o barramento deverá ser instalado em duas Caixas diretas e, as caixas do disjuntor e barramentos, deverão estar centralizadas ao centro, permitindo divisão igualitária do centro. Lembrando que não poderá existir mais que quatro grupos de caixa lateralmente aos barramentos."]
[]
[]
[null,null,null,"Exemplo: Barramento em uma única caixa direta (superior a 12 medições)"]
[]
[]
[]
[]
[]
[]
[]
[]
[]
[]
[]
[]
[]
[]
[]
[]
[]
[null,null,null,"Medição para Incêncio: Uma  nota importante para os centros de medição é a medição para a bomba de incêndio. Quando houver medição de incêndio, a alimentação da medição  deverá ser efetuada sempre antes do disjuntor de proteção geral, de forma a garantir seu funcionamento, ainda que a alimentação interna seja desligada (desenergizada)"]
[]
[]
[]
[null,null,null,"A caixa de medição poderia ficar junto ao centro de medição ou atendida em caixa individual imediatamente ao lado do centro de medição, ocorrendo à derivação através de eletroduto de ferro galvanizado."]
[]
[]
[null,null,null,"Ex. Caixa de Medição de Incêndio junto ao Centro."]
[]
[]
[]
[]
[]
[]
[]
[]
[]
[]
[]
[]
[null,null,null,"Ex. Caixa de Medição de Incêndio em caixa individual imediatamente próxima ao centro."]
[]
[]
[]
[]
[]
[]
[]
[]
[]
[]
[]
[]
[]
[]
[null,null,null,"Legenda:"]
[null,null,null,"DJ (Disjuntor),  B (Barramento),  MI (Medição de Incêndio),  M (medição), EP (barra de equipotêncialização)."]
[]
[]
[]
[null,null,null,null,null,"Para copiar texto, click no ícone:",null,null,null,null,null,"Versão 1.0"]

{"sheet":"PAGE1","index":2,"n_rows":37,"n_cols":15,"rows_kept":37,"cut":false,"hidden":false,"merged":[[16,3,16,7],[13,9,13,12],[10,9,10,12],[10,3,10,7],[12,3,12,7],[12,9,12,13],[13,3,13,7],[15,3,15,7],[15,9,15,13],[16,9,16,12],[2,3,2,12],[4,3,4,13],[9,3,9,7],[9,9,9,13],[6,3,7,7],[6,8,7,11],[36,14,36,15],[26,3,26,13],[28,3,28,11],[30,3,30,11],[30,12,30,13],[32,3,33,8],[32,10,32,12],[33,10,33,12],[24,4,24,6],[24,8,24,9],[24,10,24,13],[18,3,18,7],[20,3,20,4],[20,5,20,11],[22,4,22,6],[22,9,22,13]]}
[]
[]
[]
[]
[null,null,null,"1 - Dados da obra"]
[]
[null,null,null,"1.1 - Informar UC -  (Instalação já Energizada):"]
[]
[]
[null,null,null,"1.2 - Solicitante (Titular da UC):",null,null,null,null,null,"1.3 - CPF/CNPJ"]
[]
[]
[null,null,null,"1.4 - E-mail Titular da UC:",null,null,null,null,null,"1.5 - Telefone Solicitante"]
[]
[]
[null,null,null,"1.6 - E-mail Responsável Técnico:",null,null,null,null,null,"1.7 - Telefone Responsável Técnico:"]
[]
[]
[null,null,null,"1.8 - Endereço da Obra/UC (conforme ART/TRT):"]
[]
[null,null,null,"Logradouro:",null,null,null,null,null,null,null,null,"Nº"]
[]
[null,null,null,"CEP:",null,null,null,null,"Bairro:"]
[]
[null,null,null,"Cidade:",null,null,null,null,"Comp. / Ref.:"]
[]
[null,null,null,"2 - Referência elétrica"]
[]
[null,null,null,"2.1 - Informe a distância do Ponto de Entrega até o poste ELEKTRO mais próximo:",null,null,null,null,null,null,null,null,null,"Metros"]
[]
[null,null,null,"2.2 - Indicar nº. de uma referência elétrica próxima (ex. Transformador, Medidor UC): "]
[]
[null,null,null,"2.3 - Coordenadas Latitude e Longitude do local da obra em decimais:",null,null,null,null,null,"Lat:"]
[null,null,null,null,null,null,null,null,null,"Long:"]
[]
[]
[null,null,null,null,null,null,null,null,null,null,null,null,null,null,"Versão 1.0"]

{"sheet":"PAGE1.1","index":3,"n_rows":115,"n_cols":12,"rows_kept":115,"cut":false,"hidden":false,"merged":[[114,5,114,8],[114,11,114,12],[87,3,90,10],[91,3,111,10],[2,2,2,10],[5,3,5,10],[6,3,16,10],[18,3,18,10],[19,3,23,10],[25,3,48,10],[49,3,51,10],[52,3,64,10],[66,3,66,10],[67,3,70,10],[71,3,86,10]]}
[]
[]
[]
[]
[]
[null,null,null,"O que é Referência Elétrica (Confiabilidade)"]
[null,null,null,"\nPor questões de localização e segurança, sempre deverá indicar referências elétricas (confiabilidades) no projeto. Orientamos o envio, ainda que a UC já esteja ligada!\n\nComo confiabilidade, consideramos chaves seccionadoras, transformadores, religadores, números de medidores, etc. Nos equipamentos,  os números de confiabilidade poderão ser encontrados nos postes, onde os equipamentos estão instalados,  a uma altura aproximada de 4 metros em relação ao solo, com números pintados em preto com o fundo em amarelo, ou então números pintados no tanque dos transformadores na cor preta (Ex. 109315 – 3 – 15). Já os números dos medidores podem ser encontrados no visor dos equipamentos (Ex. 3T05067-1). \n\nTambém poderá ser indicado o número da unidade consumidora (UC), podendo este ser encontrado na fatura de energia enviada (conta). \n\nPor fim, também deverão ser enviadas as coordenadas Latitude e Longitude (decimais), do local da obra. Indicamos que sejam informadas as coordenadas do ponto de entrega (poste de padrão)"]
[]
[]
[]
[]
[]
[]
[]
[]
[]
[]
[]
[null,null,null,"Número de Confiabilidade em Equipamentos (ex. Transformador)"]
[null,null,null,"\nEm equipamentos, o número de confiabilidade (referência elérica) será encontrado no poste onde o equipamento estiver instalado, em altura próxima a 4(quatro) metros em relação ao nível do solo acabado, com números (algarísmos) na cor preta e com o fundo em amarelo. \n\nNota: Em postes com chaves seccionadoras, religadores, chaves à óleo, também será encontrada a mesma configuração."]
[]
[]
[]
[]
[]
[]
[]
[]
[]
[]
[]
[]
[]
[]
[]
[]
[]
[]
[]
[]
[]
[]
[]
[]
[]
[]
[]
[]
[]
[null,null,null,"Também poderá ser informado o tombamento (número patrimonial). O tombamento poderá ser encontrado na carcaça dos equipamentos, com números pintados em preto, no seguinte modelo \"Tombamento - Número de Fases - Potência\". Ex. 109876 -3 - 75"]
[]
[]
[]
[]
[]
[]
[]
[]
[]
[]
[]
[]
[]
[]
[]
[]
[null,null,null,"Confiabilidade (Unidade Consumidora e Medidor)"]
[null,null,null,"\nA Unidade Consumidora (UC) representa o ponto de consumo do cliente, atendido através de uma medição. Esse código poderá ser encontrado na fatura de energia (conta) enviada mensalmente pela distribuidora. O código poderá ser identificado conforme, abaixo, através do campo \"Seu Código\":"]
[]
[]
[]
[]
[]
[]
[]
[]
[]
[]
[]
[]
[]
[]
[]
[]
[]
[]
[]
[null,null,null,"\nQuanto ao número do medidor, também poderá ser encontrado na fatura de energia, através do campo Medidor  ou no visor do equipamento, instalado no ponto de consumo do cliente, conforme abaixo: \n\nNota: Números de medidores ficticios."]
[]
[]
[]
[]
[]
[]
[]
[]
[]
[]
[]
[]
[]
[]
[]
[]
[]
[]
[]
[]
[]
[]
[]
[]
[]
[]
[null,null,null,null,null,null,null,null,null,null,null,"Versão 1.0"]

{"sheet":"PAGE2","index":4,"n_rows":46,"n_cols":16,"rows_kept":46,"cut":false,"hidden":false,"merged":[[7,10,7,11],[7,12,7,13],[6,10,6,13],[2,3,2,12],[4,3,4,13],[6,3,6,7],[8,3,8,7],[10,3,10,9],[12,3,12,5],[12,6,12,13],[13,3,13,5],[13,6,13,13],[9,10,10,13],[14,3,14,5],[14,6,14,13],[15,3,15,5],[15,6,15,13],[16,3,16,5],[16,6,16,13],[17,3,17,5],[17,6,17,13],[18,3,18,5],[18,6,18,13],[19,3,19,5],[19,6,19,13],[45,14,45,15],[24,3,24,13],[25,3,25,13],[20,3,20,5],[20,6,20,13],[21,3,21,5],[21,6,21,13],[22,3,22,5],[22,6,22,13],[40,3,40,5],[37,6,37,13],[40,6,40,12],[27,13,36,13],[27,6,36,12],[27,3,28,5],[40,13,43,15]]}
[]
[]
[]
[]
[null,null,null,"3 - Quadro de Medição e Proteção (QM)"]
[]
[null,null,null,"3.1 - Quantidade de unidades consumidoras:",null,null,null,null,null,null,"3.2 - Cadastrar Unidades Consumidoras"]
[null,null,null,null,null,null,null,null,{"$f":"I7-PAGE5!B34","v":0},null,null,null,null,null,null,{"$f":"PAGE5!B34","v":0}]
[null,null,null,"3.3 - Tensão de Fornecimento (V)"]
[null,null,null,null,null,null,null,null,null,null,{"$f":"IF(I8<>0,\"Qtde de Ucs informadas,  diferente da Qtde Cadastradas\",\"\")","v":""}]
[null,null,null,"3.4 - Dados do Quadro de Medição, Proteção e Barramento"]
[]
[null,null,null,"Dados dos Quadros",null,null,"QDG**"]
[null,null,null,"Material"]
[null,null,null,"Demanda Calculada Total  (kVA)*"]
[null,null,null,"Categoria de Agrupamento",null,null,{"$f":"IF(AND(G15>0,G15<=38,I9=\"220/127\"),\"CA1\",IF(AND(G15>38,G15<=50,I9=\"220/127\"),\"CA2\",IF(AND(G15>0,G15<=50,I9=\"380/220\"),\"CA3\",\"\")))","v":""}]
[null,null,null,"Barramento de Cobre",null,null,{"$f":"IF(G16=\"CA1\",\" 19,05 x 3,18 mm  ou  3/8 x 1/8' \",IF(G16=\"CA2\",\"25,4 x 3,18 mm ou 1 x 1,8' \",IF(G16=\"CA3\",\"25,4 x 3,18 mm ou 1 x 1,8' \",\"\")))","v":""}]
[null,null,null,"Disjuntor Geral (A)",null,null,{"$f":"IF(G16=\"CA1\",\" 100\",IF(G16=\"CA2\",\"150 \",IF(G16=\"CA3\",\"80\",\"\")))","v":""}]
[null,null,null,"Cabo do Ramal de Entrada (mm²)",null,null,{"$f":"IF(G16=\"CA1\",\" 3x25(25) mm² XLPE  ou  3x35(35) mm²  PVC\",IF(G16=\"CA2\",\"3x50(50) mm² XLPE  ou  3x70(70) mm² PVC\",IF(G16=\"CA3\",\"3x16(16) mm² XLPE  ou  3x25(25) mm² PVC\",\"\")))","v":""}]
[null,null,null,"Diâmetro do Eletroduto",null,null,{"$f":"IF(G16=\"CA1\",\" 60 mm ou 2' \",IF(G16=\"CA2\",\"60 mm ou 2'  \",IF(G16=\"CA3\",\"40 mm ou 1 ¼' \",\"\")))","v":""}]
[null,null,null,"Aterramento - Condutor de Cobre",null,null,{"$f":"IF(G16=\"CA1\",\" 16 mm²\",IF(G16=\"CA2\",\"16 mm²\",IF(G16=\"CA3\",\"16 mm²\",\"\")))","v":""}]
[null,null,null,"Poste Padrão (Resistência Mecânica)",null,null,{"$f":"IF(G16=\"CA1\",\" 90 daN\",IF(G16=\"CA2\",\"200 daN \",IF(G16=\"CA3\",\"90 daN\",\"\")))","v":""}]
[null,null,null,"Ramal de Ligação  Neo ELEKTRO",null,null,{"$f":"IF(G16=\"CA1\",\"AL - 3x 25(25) mm²\",IF(G16=\"CA2\",\"AL - 3x 50(50) mm²\",IF(G16=\"CA3\",\"AL - 3x 25(25) mm²\",\"\")))","v":""}]
[]
[]
[null,null,null,"3.5  Detalhes de Montagem",null,null,null,null,null,null,null,null,null,null,null,{"$f":"IF(D28=\"Até 12 Medições - Barramento Lateral (esquerda)\",1,IF(D28=\"Até 12 Medições - Barramento Lateral (direita)\",2,IF(D28=\"Até 12 Medições - Barramento Central\",3,IF(D28=\"Maior que 12 Medições - Barramento Central\",4,0))))","v":0}]
[]
[null,null,null,null,null,null,null,null,null,null,null,null,null,"EXEMPLO "]
[]
[]
[]
[]
[]
[]
[]
[]
[]
[null,null,null,null,null,null,"Legendas: Disjuntor (DJ), Barramento (B), Medição (M), EP (Barra de Equipotencialização)"]
[]
[]
[null,null,null,"Existe Medição de Incêndio?"]
[]
[]
[]
[]
[null,null,null,null,null,null,null,null,null,null,null,null,null,null,"Versão 1.0"]

{"sheet":"PAGE3","index":5,"n_rows":54,"n_cols":15,"rows_kept":54,"cut":false,"hidden":false,"merged":[[10,3,10,9],[10,11,10,13],[53,14,53,15],[2,3,2,12],[4,3,4,13],[47,3,48,9],[12,3,12,9],[6,3,6,9],[14,3,14,9],[38,3,38,9],[40,3,40,9],[22,3,22,9],[27,3,27,9],[42,3,42,9],[16,3,17,9],[19,3,20,9],[24,3,25,9],[47,10,48,10],[44,10,45,10],[35,3,36,9],[35,10,36,10],[16,10,17,10],[19,10,20,10],[24,10,25,10],[6,11,6,13],[14,11,14,13],[16,11,17,13],[19,11,20,13],[22,11,22,13],[8,3,8,9],[8,11,8,13],[47,11,48,12],[32,11,33,13],[38,11,38,13],[40,11,40,13],[42,11,42,13],[44,11,45,13],[24,11,25,13],[27,11,27,13],[29,11,30,13],[29,10,30,10],[32,3,33,9],[32,10,33,10],[29,3,30,9],[44,3,45,9]]}
[]
[]
[]
[]
[null,null,null,"4 - Informações Sobre às Instalações"]
[]
[null,null,null,"4.1. Trata-se de ramal de ligação único na propriedade",null,null,null,null,null,null,null,{"$f":"IF(K7=\"Sim\",\"OK\",IF(K7=\"Não\",\"Reprovado\",\"\"))","v":""}]
[]
[null,null,null,"4.2. Trata-se de Ligação em Área Urbana ou Rural",null,null,null,null,null,null,null,{"$f":"IF(K9 =\"Urbano\", \"OK\", IF(K9=\"agrovila\",\"Bairro Rural com Característica Urbana - OK\",IF(K9=\"Rural\", \"Reprovado\",\"\")))","v":""}]
[]
[null,null,null,"4.3. Há abertura de vias e parcelamento de solo (lotes, para casas)",null,null,null,null,null,null,null,{"$f":"IF(K11=\"Sim\",\"Reprovado, apresentar projeto de loteamento!\",IF(K11=\"Não\",\"OK\",\"\"))","v":""}]
[]
[null,null,null,"4.4. Ramal de Conexão Aéreo ou Subterrâneo"]
[]
[null,null,null,"4.5. Se subterrâneo, enviada autorização da prefeitura para cruzamento do passeio",null,null,null,null,null,null,null,{"$f":"IF(K15=\"Sim\",\"OK\",IF(K15=\"Não\",\"Reprovado\",IF(K15=\"N/A\",\"\",\"\")))","v":""}]
[]
[null,null,null,"4.6. Se ramal subterrâneo, o ramal cruza somente a calçada e a propriedade do solicitante",null,null,null,null,null,null,null,{"$f":"IF(K17=\"Sim\",\"OK\",IF(K17=\"Não\",\"Reprovado\",IF(K17=\"N/A\",\"\",\"\")))","v":""}]
[]
[]
[null,null,null,"4.7. - Se ramal aéreo, o ponto de entrega está instalado em no máximo 1 metro em relação a Divisa",null,null,null,null,null,null,null,{"$f":"IF(K20=\"Sim\",\"OK\",IF(K20=\"Não\",\"Reprovado\",IF(K20=\"N/A\",\"\",\"\")))","v":""}]
[]
[]
[null,null,null,"4.8. Caso se tratar de Coluna de Concreto ou fachada, enviada ART/TRT Civil",null,null,null,null,null,null,null,{"$f":"IF(K23=\"Sim\",\"OK\",IF(K23=\"Não\",\"Reprovado\",IF(K23=\"N/A\",\"\",\"\")))","v":""}]
[]
[null,null,null,"4.9. Quando o ramal for instalado em fachada, respeitadas todas as distâncias de segurança de janelas, sacadas e similares, evitando acesso a pessoas (riscos)",null,null,null,null,null,null,null,{"$f":"IF(K25=\"Sim\",\"OK\",IF(K25=\"Não\",\"Reprovado\",IF(K25=\"N/A\",\"\",\"\")))","v":""}]
[]
[]
[null,null,null,"4.10. Respeitados os afastamentos mínimos do ramal em relação ao solo",null,null,null,null,null,null,null,{"$f":"IF(K28=\"Sim\",\"OK\",IF(K28=\"Não\",\"Reprovado\",IF(K28=\"N/A\",\"\",\"\")))","v":""}]
[]
[null,null,null,"4.11.  Respeitados os afastamentos mínimos entre o ponto de conexão (encabeçamento no padrão)  e demais serviços (ex. Internet, telefonia)",null,null,null,null,null,null,null,{"$f":"IF(K30=\"Sim\",\"OK\",IF(K30=\"Não\",\"Reprovado\",IF(K30=\"N/A\",\"\",\"\")))","v":""}]
[]
[]
[null,null,null,"4.12. O Centro de Medição está instalado no máximo a 40 metros do ponto de conexão?",null,null,null,null,null,null,null,{"$f":"IF(K33=\"Sim\",\"OK\",IF(K33=\"Não\",\"Reprovado\",IF(K33=\"N/A\",\"\",\"\")))","v":""}]
[]
[]
[null,null,null,"4.13. Centro de medição instalado no térreo, 1 subsolo ou 1 andar (imediatos ao térreo)"]
[]
[]
[null,null,null,"4.14. O local de instalação do centro está livre de inundação ou enchentes",null,null,null,null,null,null,null,{"$f":"IF(K39=\"Sim\",\"OK\",IF(K39=\"Não\",\"Reprovado\",IF(K39=\"N/A\",\"\",\"\")))","v":""}]
[]
[null,null,null,"4.15.  Utilizados somente condutores classe 2 ou 5"]
[]
[null,null,null,"4.16. Apartamentos estão identificados com placa de metal ou acrílico 40x20mm",null,null,null,null,null,null,null,{"$f":"IF(K43=\"Sim\",\"OK\",IF(K43=\"Não\",\"Reprovado\",IF(K43=\"N/A\",\"\",\"\")))","v":""}]
[]
[null,null,null,"4.17. As caixas de medição estão instaladas respeitando altura mínima de 250 mm do solo e no máximo 1850 mm",null,null,null,null,null,null,null,{"$f":"IF(K45=\"Sim\",\"OK\",IF(K45=\"Não\",\"Reprovado\",IF(K45=\"N/A\",\"\",\"\")))","v":""}]
[]
[]
[null,null,null,"4.18. O quadro está aterrado e conectado ao poço de inspeção em malha com no mínimo 3 hastes",null,null,null,null,null,null,null,{"$f":"IF(K48=\"Sim\",\"OK\",IF(K48=\"Não\",\"Reprovado\",IF(K48=\"N/A\",\"\",\"\")))","v":""}]
[]
[]
[null,null,null,null,null,null,null,null,null,null,null,null,{"$f":"COUNTIF(L7:N49,\"reprovado\")","v":0}]
[]
[]
[null,null,null,null,null,null,null,null,null,null,null,null,null,null,"Versão 1.0"]

{"sheet":"PAGE4","index":6,"n_rows":22,"n_cols":14,"rows_kept":22,"cut":false,"hidden":false,"merged":[[2,3,2,12],[5,9,5,12],[6,9,6,12],[21,13,21,14],[6,3,6,4],[6,6,6,7],[7,6,15,7],[7,3,15,4],[17,3,17,4],[17,6,17,7]]}
[]
[null,null,{"$f":"IF(#REF! = 40, \"1\", \"0\")","v":{"$error":"#REF!"}}]
[]
[]
[]
[]
[null,null,null,"Observações Adicionais",null,null,"Resumo (Inserir na ART/TRT)"]
[null,null,null,null,null,null,{"$f":"CONCATENATE(\"Trata-se de Medição Coletiva Isento de Projeto, para atender \",PAGE2!I7,\" medições; com demanda total de \", PAGE2!G15,\"kVA;\",\n\" Categoria de Agrupamento \",PAGE2!G16,\" e tensão de fornecimento \",PAGE2!I9,\"V \", \" Das medições, são: \", Tabelas!J2,\" Apartamentos; \",Tabelas!J8,\" Casas; \",  Tabelas!J4,\n\" Condomínio/Administração; \", Tabelas!J5,\" Bomba de Incêndio; \",Tabelas!J6,\" Salas; \", Tabelas!J3,\" Lojas; \", Tabelas!J7, \" Boxes. \",\" Existe Medidor de Incêndio: \", PAGE2!G41, \". \",\"Montagem do Centro: \", PAGE2!D28)","v":"Trata-se de Medição Coletiva Isento de Projeto, para atender  medições; com demanda total de kVA; Categoria de Agrupamento  e tensão de fornecimento V  Das medições, são: 0 Apartamentos; 0 Casas; 0 Condomínio/Administração; 0 Bomba de Incêndio; 0 Salas; 0 Lojas; 0 Boxes.  Existe Medidor de Incêndio: . Montagem do Centro: "}]
[]
[]
[]
[]
[]
[]
[]
[]
[null,null,null,"Limite de 200 caracteres."]
[null,null,null,"ANOTAR ART/TRT:"]
[]
[]
[]
[null,null,null,null,null,null,null,null,null,null,null,null,null,"Versão 1.0"]

{"sheet":"PAGE5","index":7,"n_rows":37,"n_cols":14,"rows_kept":37,"cut":false,"hidden":false,"merged":[[33,2,35,8],[6,7,6,10]]}
[]
[]
[]
[]
[]
[]
[null,null,null,null,null,null,null,{"$f":"CONCATENATE(\"Tensão de Fornecimento\",\" \", \" -\",\" \", PAGE2!I9,\"V\")","v":"Tensão de Fornecimento  - V"}]
[]
[null,null,"Item","Tipo","Tipo de Ligação","Unidade Consumidora","Identif. (Ex.: 1A, Sala 1,...)","Pavimento","Área (m²)","Disjuntor de Proteção (A)","Ramal de Distribuição (mm²)","Diâmetro do Eletroduto (mm²)","Status"]
[null,{"$f":"IF(AND(ISBLANK(D10),ISBLANK(E10),ISBLANK(F10),ISBLANK(G10),ISBLANK(H10),ISBLANK(I10)),0,IF(AND(ISBLANK(E10),ISBLANK(F10),ISBLANK(G10),ISBLANK(H10),ISBLANK(I10)),0,\nIF(AND(ISBLANK(F10),ISBLANK(G10),ISBLANK(H10),ISBLANK(I10)),0,IF(AND(ISBLANK(G10),ISBLANK(H10),ISBLANK(I10)),0,IF(AND(ISBLANK(H10),ISBLANK(I10)),0,IF(AND(ISBLANK(I10)),0,1))))))","v":0},1,null,null,null,null,null,null,{"$f":"IF(OR(ISBLANK(D10),ISBLANK(E10),ISBLANK(F10),ISBLANK(G10),ISBLANK(H10),ISBLANK(I10),ISBLANK(#REF!),ISBLANK(#REF!)),\"\",\nIF(E10=\"Monofásico(M1)\",\"50\",\nIF(E10=\"Bifásico(B1)\",\"50\",\nIF(E10=\"Trifásico(T1)\",\"63\",\nIF(E10=\"Monofásico(M3)\",\"50\",\nIF(E10=\"Trifásico(T6)\",\"63\",\n\"Rever a carga/demanda\"))))))","v":""},{"$f":"IF(OR(ISBLANK(D10),ISBLANK(E10),ISBLANK(F10),ISBLANK(G10),ISBLANK(H10),ISBLANK(I10),ISBLANK(#REF!),ISBLANK(#REF!)),\"\",\nIF(E10=\"Monofásico(M1)\",\"CU 1x10(10)mm² XLPE/HEPR ou CU 1x16(16) PVC\",\nIF(E10=\"Bifásico(B1)\",\"CU 2x16(16)mm² XLPE/HEPR/PVC\",\nIF(E10=\"Trifásico(T1)\",\"CU 3x25(25)mm² XLPE/HEPR/PVC\",\nIF(E10=\"Monofásico(M3)\",\"CU 1x10(10)mm² XLPE/HEPR ou CU 1x16(16) PVC\",\nIF(E10=\"Trifásico(T6)\",\"CU 3x25(25)mm² XLPE/HEPR/PVC\",\n\"Rever a carga/demanda\"))))))","v":""},{"$f":"IF(OR(ISBLANK(D10),ISBLANK(E10),ISBLANK(F10),ISBLANK(G10),ISBLANK(H10),ISBLANK(I10),ISBLANK(#REF!),ISBLANK(#REF!)),\"\",\nIF(E10=\"Monofásico(M1)\",\"1 ¼ - 40 mm\",\nIF(E10=\"Bifásico(B1)\",\"1 ¼ - 40mm\",\nIF(E10=\"Trifásico(T1)\",\"1 ¼ - 40mm\",\nIF(E10=\"Monofásico(M3)\",\"1 ¼ - 40 mm\",\nIF(E10=\"Trifásico(T6)\",\"1 ¼ - 40mm\",\n\"Rever a carga/demanda\"))))))","v":""},{"$f":"N10+1","v":2},{"$f":"IF(AND(ISBLANK(E10),ISBLANK(D10), ISBLANK(I10), ISBLANK(F10), ISBLANK(#REF!)), \"0\", IF(OR(ISBLANK(E10), ISBLANK(F10), ISBLANK(#REF!),J10=\"\"), \"1\", IF(AND(E10= \"Trifásico\", OR(ISBLANK(F10), ISBLANK(#REF!), ISBLANK(#REF!))), \"1\", \"2\")))","v":"1"}]
[null,{"$f":"IF(AND(ISBLANK(D11),ISBLANK(E11),ISBLANK(F11),ISBLANK(G11),ISBLANK(H11),ISBLANK(I11)),0,IF(AND(ISBLANK(E11),ISBLANK(F11),ISBLANK(G11),ISBLANK(H11),ISBLANK(I11)),0,\nIF(AND(ISBLANK(F11),ISBLANK(G11),ISBLANK(H11),ISBLANK(I11)),0,IF(AND(ISBLANK(G11),ISBLANK(H11),ISBLANK(I11)),0,IF(AND(ISBLANK(H11),ISBLANK(I11)),0,IF(AND(ISBLANK(I11)),0,1))))))","v":0},2,null,null,null,null,null,null,{"$f":"IF(OR(ISBLANK(D11),ISBLANK(E11),ISBLANK(F11),ISBLANK(G11),ISBLANK(H11),ISBLANK(I11),ISBLANK(#REF!),ISBLANK(#REF!)),\"\",\nIF(E11=\"Monofásico(M1)\",\"50\",\nIF(E11=\"Bifásico(B1)\",\"50\",\nIF(E11=\"Trifásico(T1)\",\"63\",\nIF(E11=\"Monofásico(M3)\",\"50\",\nIF(E11=\"Trifásico(T6)\",\"63\",\n\"Rever a carga/demanda\"))))))","v":""},{"$f":"IF(OR(ISBLANK(D11),ISBLANK(E11),ISBLANK(F11),ISBLANK(G11),ISBLANK(H11),ISBLANK(I11),ISBLANK(#REF!),ISBLANK(#REF!)),\"\",\nIF(E11=\"Monofásico(M1)\",\"CU 1x10(10)mm² XLPE/HEPR ou CU 1x16(16) PVC\",\nIF(E11=\"Bifásico(B1)\",\"CU 2x16(16)mm² XLPE/HEPR/PVC\",\nIF(E11=\"Trifásico(T1)\",\"CU 3x25(25)mm² XLPE/HEPR/PVC\",\nIF(E11=\"Monofásico(M3)\",\"CU 1x10(10)mm² XLPE/HEPR ou CU 1x16(16) PVC\",\nIF(E11=\"Trifásico(T6)\",\"CU 3x25(25)mm² XLPE/HEPR/PVC\",\n\"Rever a carga/demanda\"))))))","v":""},{"$f":"IF(OR(ISBLANK(D11),ISBLANK(E11),ISBLANK(F11),ISBLANK(G11),ISBLANK(H11),ISBLANK(I11),ISBLANK(#REF!),ISBLANK(#REF!)),\"\",\nIF(E11=\"Monofásico(M1)\",\"1 ¼ - 40 mm\",\nIF(E11=\"Bifásico(B1)\",\"1 ¼ - 40mm\",\nIF(E11=\"Trifásico(T1)\",\"1 ¼ - 40mm\",\nIF(E11=\"Monofásico(M3)\",\"1 ¼ - 40 mm\",\nIF(E11=\"Trifásico(T6)\",\"1 ¼ - 40mm\",\n\"Rever a carga/demanda\"))))))","v":""},{"$f":"N11+1","v":2},{"$f":"IF(AND(ISBLANK(E11),ISBLANK(D11), ISBLANK(I11), ISBLANK(F11), ISBLANK(#REF!)), \"0\", IF(OR(ISBLANK(E11), ISBLANK(F11), ISBLANK(#REF!),J11=\"\"), \"1\", IF(AND(E11= \"Trifásico\", OR(ISBLANK(F11), ISBLANK(#REF!), ISBLANK(#REF!))), \"1\", \"2\")))","v":"1"}]
[null,0,3,null,null,null,null,null,null,{"$f":"IF(OR(ISBLANK(D12),ISBLANK(E12),ISBLANK(F12),ISBLANK(G12),ISBLANK(H12),ISBLANK(I12),ISBLANK(#REF!),ISBLANK(#REF!)),\"\",\nIF(E12=\"Monofásico(M1)\",\"50\",\nIF(E12=\"Bifásico(B1)\",\"50\",\nIF(E12=\"Trifásico(T1)\",\"63\",\nIF(E12=\"Monofásico(M3)\",\"50\",\nIF(E12=\"Trifásico(T6)\",\"63\",\n\"Rever a carga/demanda\"))))))","v":""},{"$f":"IF(OR(ISBLANK(D12),ISBLANK(E12),ISBLANK(F12),ISBLANK(G12),ISBLANK(H12),ISBLANK(I12),ISBLANK(#REF!),ISBLANK(#REF!)),\"\",\nIF(E12=\"Monofásico(M1)\",\"CU 1x10(10)mm² XLPE/HEPR ou CU 1x16(16) PVC\",\nIF(E12=\"Bifásico(B1)\",\"CU 2x16(16)mm² XLPE/HEPR/PVC\",\nIF(E12=\"Trifásico(T1)\",\"CU 3x25(25)mm² XLPE/HEPR/PVC\",\nIF(E12=\"Monofásico(M3)\",\"CU 1x10(10)mm² XLPE/HEPR ou CU 1x16(16) PVC\",\nIF(E12=\"Trifásico(T6)\",\"CU 3x25(25)mm² XLPE/HEPR/PVC\",\n\"Rever a carga/demanda\"))))))","v":""},{"$f":"IF(OR(ISBLANK(D12),ISBLANK(E12),ISBLANK(F12),ISBLANK(G12),ISBLANK(H12),ISBLANK(I12),ISBLANK(#REF!),ISBLANK(#REF!)),\"\",\nIF(E12=\"Monofásico(M1)\",\"1 ¼ - 40 mm\",\nIF(E12=\"Bifásico(B1)\",\"1 ¼ - 40mm\",\nIF(E12=\"Trifásico(T1)\",\"1 ¼ - 40mm\",\nIF(E12=\"Monofásico(M3)\",\"1 ¼ - 40 mm\",\nIF(E12=\"Trifásico(T6)\",\"1 ¼ - 40mm\",\n\"Rever a carga/demanda\"))))))","v":""},2,{"$f":"IF(AND(ISBLANK(E12),ISBLANK(D12), ISBLANK(I12), ISBLANK(F12), ISBLANK(#REF!)), \"0\", IF(OR(ISBLANK(E12), ISBLANK(F12), ISBLANK(#REF!),J12=\"\"), \"1\", IF(AND(E12= \"Trifásico\", OR(ISBLANK(F12), ISBLANK(#REF!), ISBLANK(#REF!))), \"1\", \"2\")))","v":"1"}]
[null,0,4,null,null,null,null,null,null,{"$f":"IF(OR(ISBLANK(D13),ISBLANK(E13),ISBLANK(F13),ISBLANK(G13),ISBLANK(H13),ISBLANK(I13),ISBLANK(#REF!),ISBLANK(#REF!)),\"\",\nIF(E13=\"Monofásico(M1)\",\"50\",\nIF(E13=\"Bifásico(B1)\",\"50\",\nIF(E13=\"Trifásico(T1)\",\"63\",\nIF(E13=\"Monofásico(M3)\",\"50\",\nIF(E13=\"Trifásico(T6)\",\"63\",\n\"Rever a carga/demanda\"))))))","v":""},{"$f":"IF(OR(ISBLANK(D13),ISBLANK(E13),ISBLANK(F13),ISBLANK(G13),ISBLANK(H13),ISBLANK(I13),ISBLANK(#REF!),ISBLANK(#REF!)),\"\",\nIF(E13=\"Monofásico(M1)\",\"CU 1x10(10)mm² XLPE/HEPR ou CU 1x16(16) PVC\",\nIF(E13=\"Bifásico(B1)\",\"CU 2x16(16)mm² XLPE/HEPR/PVC\",\nIF(E13=\"Trifásico(T1)\",\"CU 3x25(25)mm² XLPE/HEPR/PVC\",\nIF(E13=\"Monofásico(M3)\",\"CU 1x10(10)mm² XLPE/HEPR ou CU 1x16(16) PVC\",\nIF(E13=\"Trifásico(T6)\",\"CU 3x25(25)mm² XLPE/HEPR/PVC\",\n\"Rever a carga/demanda\"))))))","v":""},{"$f":"IF(OR(ISBLANK(D13),ISBLANK(E13),ISBLANK(F13),ISBLANK(G13),ISBLANK(H13),ISBLANK(I13),ISBLANK(#REF!),ISBLANK(#REF!)),\"\",\nIF(E13=\"Monofásico(M1)\",\"1 ¼ - 40 mm\",\nIF(E13=\"Bifásico(B1)\",\"1 ¼ - 40mm\",\nIF(E13=\"Trifásico(T1)\",\"1 ¼ - 40mm\",\nIF(E13=\"Monofásico(M3)\",\"1 ¼ - 40 mm\",\nIF(E13=\"Trifásico(T6)\",\"1 ¼ - 40mm\",\n\"Rever a carga/demanda\"))))))","v":""},2,{"$f":"IF(AND(ISBLANK(E13),ISBLANK(D13), ISBLANK(I13), ISBLANK(F13), ISBLANK(#REF!)), \"0\", IF(OR(ISBLANK(E13), ISBLANK(F13), ISBLANK(#REF!),J13=\"\"), \"1\", IF(AND(E13= \"Trifásico\", OR(ISBLANK(F13), ISBLANK(#REF!), ISBLANK(#REF!))), \"1\", \"2\")))","v":"1"}]
[null,0,5,null,null,null,null,null,null,{"$f":"IF(OR(ISBLANK(D14),ISBLANK(E14),ISBLANK(F14),ISBLANK(G14),ISBLANK(H14),ISBLANK(I14),ISBLANK(#REF!),ISBLANK(#REF!)),\"\",\nIF(E14=\"Monofásico(M1)\",\"50\",\nIF(E14=\"Bifásico(B1)\",\"50\",\nIF(E14=\"Trifásico(T1)\",\"63\",\nIF(E14=\"Monofásico(M3)\",\"50\",\nIF(E14=\"Trifásico(T6)\",\"63\",\n\"Rever a carga/demanda\"))))))","v":""},{"$f":"IF(OR(ISBLANK(D14),ISBLANK(E14),ISBLANK(F14),ISBLANK(G14),ISBLANK(H14),ISBLANK(I14),ISBLANK(#REF!),ISBLANK(#REF!)),\"\",\nIF(E14=\"Monofásico(M1)\",\"CU 1x10(10)mm² XLPE/HEPR ou CU 1x16(16) PVC\",\nIF(E14=\"Bifásico(B1)\",\"CU 2x16(16)mm² XLPE/HEPR/PVC\",\nIF(E14=\"Trifásico(T1)\",\"CU 3x25(25)mm² XLPE/HEPR/PVC\",\nIF(E14=\"Monofásico(M3)\",\"CU 1x10(10)mm² XLPE/HEPR ou CU 1x16(16) PVC\",\nIF(E14=\"Trifásico(T6)\",\"CU 3x25(25)mm² XLPE/HEPR/PVC\",\n\"Rever a carga/demanda\"))))))","v":""},{"$f":"IF(OR(ISBLANK(D14),ISBLANK(E14),ISBLANK(F14),ISBLANK(G14),ISBLANK(H14),ISBLANK(I14),ISBLANK(#REF!),ISBLANK(#REF!)),\"\",\nIF(E14=\"Monofásico(M1)\",\"1 ¼ - 40 mm\",\nIF(E14=\"Bifásico(B1)\",\"1 ¼ - 40mm\",\nIF(E14=\"Trifásico(T1)\",\"1 ¼ - 40mm\",\nIF(E14=\"Monofásico(M3)\",\"1 ¼ - 40 mm\",\nIF(E14=\"Trifásico(T6)\",\"1 ¼ - 40mm\",\n\"Rever a carga/demanda\"))))))","v":""},2,{"$f":"IF(AND(ISBLANK(E14),ISBLANK(D14), ISBLANK(I14), ISBLANK(F14), ISBLANK(#REF!)), \"0\", IF(OR(ISBLANK(E14), ISBLANK(F14), ISBLANK(#REF!),J14=\"\"), \"1\", IF(AND(E14= \"Trifásico\", OR(ISBLANK(F14), ISBLANK(#REF!), ISBLANK(#REF!))), \"1\", \"2\")))","v":"1"}]
[null,0,6,null,null,null,null,null,null,{"$f":"IF(OR(ISBLANK(D15),ISBLANK(E15),ISBLANK(F15),ISBLANK(G15),ISBLANK(H15),ISBLANK(I15),ISBLANK(#REF!),ISBLANK(#REF!)),\"\",\nIF(E15=\"Monofásico(M1)\",\"50\",\nIF(E15=\"Bifásico(B1)\",\"50\",\nIF(E15=\"Trifásico(T1)\",\"63\",\nIF(E15=\"Monofásico(M3)\",\"50\",\nIF(E15=\"Trifásico(T6)\",\"63\",\n\"Rever a carga/demanda\"))))))","v":""},{"$f":"IF(OR(ISBLANK(D15),ISBLANK(E15),ISBLANK(F15),ISBLANK(G15),ISBLANK(H15),ISBLANK(I15),ISBLANK(#REF!),ISBLANK(#REF!)),\"\",\nIF(E15=\"Monofásico(M1)\",\"CU 1x10(10)mm² XLPE/HEPR ou CU 1x16(16) PVC\",\nIF(E15=\"Bifásico(B1)\",\"CU 2x16(16)mm² XLPE/HEPR/PVC\",\nIF(E15=\"Trifásico(T1)\",\"CU 3x25(25)mm² XLPE/HEPR/PVC\",\nIF(E15=\"Monofásico(M3)\",\"CU 1x10(10)mm² XLPE/HEPR ou CU 1x16(16) PVC\",\nIF(E15=\"Trifásico(T6)\",\"CU 3x25(25)mm² XLPE/HEPR/PVC\",\n\"Rever a carga/demanda\"))))))","v":""},{"$f":"IF(OR(ISBLANK(D15),ISBLANK(E15),ISBLANK(F15),ISBLANK(G15),ISBLANK(H15),ISBLANK(I15),ISBLANK(#REF!),ISBLANK(#REF!)),\"\",\nIF(E15=\"Monofásico(M1)\",\"1 ¼ - 40 mm\",\nIF(E15=\"Bifásico(B1)\",\"1 ¼ - 40mm\",\nIF(E15=\"Trifásico(T1)\",\"1 ¼ - 40mm\",\nIF(E15=\"Monofásico(M3)\",\"1 ¼ - 40 mm\",\nIF(E15=\"Trifásico(T6)\",\"1 ¼ - 40mm\",\n\"Rever a carga/demanda\"))))))","v":""},2,{"$f":"IF(AND(ISBLANK(E15),ISBLANK(D15), ISBLANK(I15), ISBLANK(F15), ISBLANK(#REF!)), \"0\", IF(OR(ISBLANK(E15), ISBLANK(F15), ISBLANK(#REF!),J15=\"\"), \"1\", IF(AND(E15= \"Trifásico\", OR(ISBLANK(F15), ISBLANK(#REF!), ISBLANK(#REF!))), \"1\", \"2\")))","v":"1"}]
[null,0,7,null,null,null,null,null,null,{"$f":"IF(OR(ISBLANK(D16),ISBLANK(E16),ISBLANK(F16),ISBLANK(G16),ISBLANK(H16),ISBLANK(I16),ISBLANK(#REF!),ISBLANK(#REF!)),\"\",\nIF(E16=\"Monofásico(M1)\",\"50\",\nIF(E16=\"Bifásico(B1)\",\"50\",\nIF(E16=\"Trifásico(T1)\",\"63\",\nIF(E16=\"Monofásico(M3)\",\"50\",\nIF(E16=\"Trifásico(T6)\",\"63\",\n\"Rever a carga/demanda\"))))))","v":""},{"$f":"IF(OR(ISBLANK(D16),ISBLANK(E16),ISBLANK(F16),ISBLANK(G16),ISBLANK(H16),ISBLANK(I16),ISBLANK(#REF!),ISBLANK(#REF!)),\"\",\nIF(E16=\"Monofásico(M1)\",\"CU 1x10(10)mm² XLPE/HEPR ou CU 1x16(16) PVC\",\nIF(E16=\"Bifásico(B1)\",\"CU 2x16(16)mm² XLPE/HEPR/PVC\",\nIF(E16=\"Trifásico(T1)\",\"CU 3x25(25)mm² XLPE/HEPR/PVC\",\nIF(E16=\"Monofásico(M3)\",\"CU 1x10(10)mm² XLPE/HEPR ou CU 1x16(16) PVC\",\nIF(E16=\"Trifásico(T6)\",\"CU 3x25(25)mm² XLPE/HEPR/PVC\",\n\"Rever a carga/demanda\"))))))","v":""},{"$f":"IF(OR(ISBLANK(D16),ISBLANK(E16),ISBLANK(F16),ISBLANK(G16),ISBLANK(H16),ISBLANK(I16),ISBLANK(#REF!),ISBLANK(#REF!)),\"\",\nIF(E16=\"Monofásico(M1)\",\"1 ¼ - 40 mm\",\nIF(E16=\"Bifásico(B1)\",\"1 ¼ - 40mm\",\nIF(E16=\"Trifásico(T1)\",\"1 ¼ - 40mm\",\nIF(E16=\"Monofásico(M3)\",\"1 ¼ - 40 mm\",\nIF(E16=\"Trifásico(T6)\",\"1 ¼ - 40mm\",\n\"Rever a carga/demanda\"))))))","v":""},2,{"$f":"IF(AND(ISBLANK(E16),ISBLANK(D16), ISBLANK(I16), ISBLANK(F16), ISBLANK(#REF!)), \"0\", IF(OR(ISBLANK(E16), ISBLANK(F16), ISBLANK(#REF!),J16=\"\"), \"1\", IF(AND(E16= \"Trifásico\", OR(ISBLANK(F16), ISBLANK(#REF!), ISBLANK(#REF!))), \"1\", \"2\")))","v":"1"}]
[null,0,8,null,null,null,null,null,null,{"$f":"IF(OR(ISBLANK(D17),ISBLANK(E17),ISBLANK(F17),ISBLANK(G17),ISBLANK(H17),ISBLANK(I17),ISBLANK(#REF!),ISBLANK(#REF!)),\"\",\nIF(E17=\"Monofásico(M1)\",\"50\",\nIF(E17=\"Bifásico(B1)\",\"50\",\nIF(E17=\"Trifásico(T1)\",\"63\",\nIF(E17=\"Monofásico(M3)\",\"50\",\nIF(E17=\"Trifásico(T6)\",\"63\",\n\"Rever a carga/demanda\"))))))","v":""},{"$f":"IF(OR(ISBLANK(D17),ISBLANK(E17),ISBLANK(F17),ISBLANK(G17),ISBLANK(H17),ISBLANK(I17),ISBLANK(#REF!),ISBLANK(#REF!)),\"\",\nIF(E17=\"Monofásico(M1)\",\"CU 1x10(10)mm² XLPE/HEPR ou CU 1x16(16) PVC\",\nIF(E17=\"Bifásico(B1)\",\"CU 2x16(16)mm² XLPE/HEPR/PVC\",\nIF(E17=\"Trifásico(T1)\",\"CU 3x25(25)mm² XLPE/HEPR/PVC\",\nIF(E17=\"Monofásico(M3)\",\"CU 1x10(10)mm² XLPE/HEPR ou CU 1x16(16) PVC\",\nIF(E17=\"Trifásico(T6)\",\"CU 3x25(25)mm² XLPE/HEPR/PVC\",\n\"Rever a carga/demanda\"))))))","v":""},{"$f":"IF(OR(ISBLANK(D17),ISBLANK(E17),ISBLANK(F17),ISBLANK(G17),ISBLANK(H17),ISBLANK(I17),ISBLANK(#REF!),ISBLANK(#REF!)),\"\",\nIF(E17=\"Monofásico(M1)\",\"1 ¼ - 40 mm\",\nIF(E17=\"Bifásico(B1)\",\"1 ¼ - 40mm\",\nIF(E17=\"Trifásico(T1)\",\"1 ¼ - 40mm\",\nIF(E17=\"Monofásico(M3)\",\"1 ¼ - 40 mm\",\nIF(E17=\"Trifásico(T6)\",\"1 ¼ - 40mm\",\n\"Rever a carga/demanda\"))))))","v":""},2,{"$f":"IF(AND(ISBLANK(E17),ISBLANK(D17), ISBLANK(I17), ISBLANK(F17), ISBLANK(#REF!)), \"0\", IF(OR(ISBLANK(E17), ISBLANK(F17), ISBLANK(#REF!),J17=\"\"), \"1\", IF(AND(E17= \"Trifásico\", OR(ISBLANK(F17), ISBLANK(#REF!), ISBLANK(#REF!))), \"1\", \"2\")))","v":"1"}]
[null,0,9,null,null,null,null,null,null,{"$f":"IF(OR(ISBLANK(D18),ISBLANK(E18),ISBLANK(F18),ISBLANK(G18),ISBLANK(H18),ISBLANK(I18),ISBLANK(#REF!),ISBLANK(#REF!)),\"\",\nIF(E18=\"Monofásico(M1)\",\"50\",\nIF(E18=\"Bifásico(B1)\",\"50\",\nIF(E18=\"Trifásico(T1)\",\"63\",\nIF(E18=\"Monofásico(M3)\",\"50\",\nIF(E18=\"Trifásico(T6)\",\"63\",\n\"Rever a carga/demanda\"))))))","v":""},{"$f":"IF(OR(ISBLANK(D18),ISBLANK(E18),ISBLANK(F18),ISBLANK(G18),ISBLANK(H18),ISBLANK(I18),ISBLANK(#REF!),ISBLANK(#REF!)),\"\",\nIF(E18=\"Monofásico(M1)\",\"CU 1x10(10)mm² XLPE/HEPR ou CU 1x16(16) PVC\",\nIF(E18=\"Bifásico(B1)\",\"CU 2x16(16)mm² XLPE/HEPR/PVC\",\nIF(E18=\"Trifásico(T1)\",\"CU 3x25(25)mm² XLPE/HEPR/PVC\",\nIF(E18=\"Monofásico(M3)\",\"CU 1x10(10)mm² XLPE/HEPR ou CU 1x16(16) PVC\",\nIF(E18=\"Trifásico(T6)\",\"CU 3x25(25)mm² XLPE/HEPR/PVC\",\n\"Rever a carga/demanda\"))))))","v":""},{"$f":"IF(OR(ISBLANK(D18),ISBLANK(E18),ISBLANK(F18),ISBLANK(G18),ISBLANK(H18),ISBLANK(I18),ISBLANK(#REF!),ISBLANK(#REF!)),\"\",\nIF(E18=\"Monofásico(M1)\",\"1 ¼ - 40 mm\",\nIF(E18=\"Bifásico(B1)\",\"1 ¼ - 40mm\",\nIF(E18=\"Trifásico(T1)\",\"1 ¼ - 40mm\",\nIF(E18=\"Monofásico(M3)\",\"1 ¼ - 40 mm\",\nIF(E18=\"Trifásico(T6)\",\"1 ¼ - 40mm\",\n\"Rever a carga/demanda\"))))))","v":""},2,{"$f":"IF(AND(ISBLANK(E18),ISBLANK(D18), ISBLANK(I18), ISBLANK(F18), ISBLANK(#REF!)), \"0\", IF(OR(ISBLANK(E18), ISBLANK(F18), ISBLANK(#REF!),J18=\"\"), \"1\", IF(AND(E18= \"Trifásico\", OR(ISBLANK(F18), ISBLANK(#REF!), ISBLANK(#REF!))), \"1\", \"2\")))","v":"1"}]
[null,0,10,null,null,null,null,null,null,{"$f":"IF(OR(ISBLANK(D19),ISBLANK(E19),ISBLANK(F19),ISBLANK(G19),ISBLANK(H19),ISBLANK(I19),ISBLANK(#REF!),ISBLANK(#REF!)),\"\",\nIF(E19=\"Monofásico(M1)\",\"50\",\nIF(E19=\"Bifásico(B1)\",\"50\",\nIF(E19=\"Trifásico(T1)\",\"63\",\nIF(E19=\"Monofásico(M3)\",\"50\",\nIF(E19=\"Trifásico(T6)\",\"63\",\n\"Rever a carga/demanda\"))))))","v":""},{"$f":"IF(OR(ISBLANK(D19),ISBLANK(E19),ISBLANK(F19),ISBLANK(G19),ISBLANK(H19),ISBLANK(I19),ISBLANK(#REF!),ISBLANK(#REF!)),\"\",\nIF(E19=\"Monofásico(M1)\",\"CU 1x10(10)mm² XLPE/HEPR ou CU 1x16(16) PVC\",\nIF(E19=\"Bifásico(B1)\",\"CU 2x16(16)mm² XLPE/HEPR/PVC\",\nIF(E19=\"Trifásico(T1)\",\"CU 3x25(25)mm² XLPE/HEPR/PVC\",\nIF(E19=\"Monofásico(M3)\",\"CU 1x10(10)mm² XLPE/HEPR ou CU 1x16(16) PVC\",\nIF(E19=\"Trifásico(T6)\",\"CU 3x25(25)mm² XLPE/HEPR/PVC\",\n\"Rever a carga/demanda\"))))))","v":""},{"$f":"IF(OR(ISBLANK(D19),ISBLANK(E19),ISBLANK(F19),ISBLANK(G19),ISBLANK(H19),ISBLANK(I19),ISBLANK(#REF!),ISBLANK(#REF!)),\"\",\nIF(E19=\"Monofásico(M1)\",\"1 ¼ - 40 mm\",\nIF(E19=\"Bifásico(B1)\",\"1 ¼ - 40mm\",\nIF(E19=\"Trifásico(T1)\",\"1 ¼ - 40mm\",\nIF(E19=\"Monofásico(M3)\",\"1 ¼ - 40 mm\",\nIF(E19=\"Trifásico(T6)\",\"1 ¼ - 40mm\",\n\"Rever a carga/demanda\"))))))","v":""},2,{"$f":"IF(AND(ISBLANK(E19),ISBLANK(D19), ISBLANK(I19), ISBLANK(F19), ISBLANK(#REF!)), \"0\", IF(OR(ISBLANK(E19), ISBLANK(F19), ISBLANK(#REF!),J19=\"\"), \"1\", IF(AND(E19= \"Trifásico\", OR(ISBLANK(F19), ISBLANK(#REF!), ISBLANK(#REF!))), \"1\", \"2\")))","v":"1"}]
[null,0,11,null,null,null,null,null,null,{"$f":"IF(OR(ISBLANK(D20),ISBLANK(E20),ISBLANK(F20),ISBLANK(G20),ISBLANK(H20),ISBLANK(I20),ISBLANK(#REF!),ISBLANK(#REF!)),\"\",\nIF(E20=\"Monofásico(M1)\",\"50\",\nIF(E20=\"Bifásico(B1)\",\"50\",\nIF(E20=\"Trifásico(T1)\",\"63\",\nIF(E20=\"Monofásico(M3)\",\"50\",\nIF(E20=\"Trifásico(T6)\",\"63\",\n\"Rever a carga/demanda\"))))))","v":""},{"$f":"IF(OR(ISBLANK(D20),ISBLANK(E20),ISBLANK(F20),ISBLANK(G20),ISBLANK(H20),ISBLANK(I20),ISBLANK(#REF!),ISBLANK(#REF!)),\"\",\nIF(E20=\"Monofásico(M1)\",\"CU 1x10(10)mm² XLPE/HEPR ou CU 1x16(16) PVC\",\nIF(E20=\"Bifásico(B1)\",\"CU 2x16(16)mm² XLPE/HEPR/PVC\",\nIF(E20=\"Trifásico(T1)\",\"CU 3x25(25)mm² XLPE/HEPR/PVC\",\nIF(E20=\"Monofásico(M3)\",\"CU 1x10(10)mm² XLPE/HEPR ou CU 1x16(16) PVC\",\nIF(E20=\"Trifásico(T6)\",\"CU 3x25(25)mm² XLPE/HEPR/PVC\",\n\"Rever a carga/demanda\"))))))","v":""},{"$f":"IF(OR(ISBLANK(D20),ISBLANK(E20),ISBLANK(F20),ISBLANK(G20),ISBLANK(H20),ISBLANK(I20),ISBLANK(#REF!),ISBLANK(#REF!)),\"\",\nIF(E20=\"Monofásico(M1)\",\"1 ¼ - 40 mm\",\nIF(E20=\"Bifásico(B1)\",\"1 ¼ - 40mm\",\nIF(E20=\"Trifásico(T1)\",\"1 ¼ - 40mm\",\nIF(E20=\"Monofásico(M3)\",\"1 ¼ - 40 mm\",\nIF(E20=\"Trifásico(T6)\",\"1 ¼ - 40mm\",\n\"Rever a carga/demanda\"))))))","v":""},2,{"$f":"IF(AND(ISBLANK(E20),ISBLANK(D20), ISBLANK(I20), ISBLANK(F20), ISBLANK(#REF!)), \"0\", IF(OR(ISBLANK(E20), ISBLANK(F20), ISBLANK(#REF!),J20=\"\"), \"1\", IF(AND(E20= \"Trifásico\", OR(ISBLANK(F20), ISBLANK(#REF!), ISBLANK(#REF!))), \"1\", \"2\")))","v":"1"}]
[null,0,12,null,null,null,null,null,null,{"$f":"IF(OR(ISBLANK(D21),ISBLANK(E21),ISBLANK(F21),ISBLANK(G21),ISBLANK(H21),ISBLANK(I21),ISBLANK(#REF!),ISBLANK(#REF!)),\"\",\nIF(E21=\"Monofásico(M1)\",\"50\",\nIF(E21=\"Bifásico(B1)\",\"50\",\nIF(E21=\"Trifásico(T1)\",\"63\",\nIF(E21=\"Monofásico(M3)\",\"50\",\nIF(E21=\"Trifásico(T6)\",\"63\",\n\"Rever a carga/demanda\"))))))","v":""},{"$f":"IF(OR(ISBLANK(D21),ISBLANK(E21),ISBLANK(F21),ISBLANK(G21),ISBLANK(H21),ISBLANK(I21),ISBLANK(#REF!),ISBLANK(#REF!)),\"\",\nIF(E21=\"Monofásico(M1)\",\"CU 1x10(10)mm² XLPE/HEPR ou CU 1x16(16) PVC\",\nIF(E21=\"Bifásico(B1)\",\"CU 2x16(16)mm² XLPE/HEPR/PVC\",\nIF(E21=\"Trifásico(T1)\",\"CU 3x25(25)mm² XLPE/HEPR/PVC\",\nIF(E21=\"Monofásico(M3)\",\"CU 1x10(10)mm² XLPE/HEPR ou CU 1x16(16) PVC\",\nIF(E21=\"Trifásico(T6)\",\"CU 3x25(25)mm² XLPE/HEPR/PVC\",\n\"Rever a carga/demanda\"))))))","v":""},{"$f":"IF(OR(ISBLANK(D21),ISBLANK(E21),ISBLANK(F21),ISBLANK(G21),ISBLANK(H21),ISBLANK(I21),ISBLANK(#REF!),ISBLANK(#REF!)),\"\",\nIF(E21=\"Monofásico(M1)\",\"1 ¼ - 40 mm\",\nIF(E21=\"Bifásico(B1)\",\"1 ¼ - 40mm\",\nIF(E21=\"Trifásico(T1)\",\"1 ¼ - 40mm\",\nIF(E21=\"Monofásico(M3)\",\"1 ¼ - 40 mm\",\nIF(E21=\"Trifásico(T6)\",\"1 ¼ - 40mm\",\n\"Rever a carga/demanda\"))))))","v":""},2,{"$f":"IF(AND(ISBLANK(E21),ISBLANK(D21), ISBLANK(I21), ISBLANK(F21), ISBLANK(#REF!)), \"0\", IF(OR(ISBLANK(E21), ISBLANK(F21), ISBLANK(#REF!),J21=\"\"), \"1\", IF(AND(E21= \"Trifásico\", OR(ISBLANK(F21), ISBLANK(#REF!), ISBLANK(#REF!))), \"1\", \"2\")))","v":"1"}]
[null,0,13,null,null,null,null,null,null,{"$f":"IF(OR(ISBLANK(D22),ISBLANK(E22),ISBLANK(F22),ISBLANK(G22),ISBLANK(H22),ISBLANK(I22),ISBLANK(#REF!),ISBLANK(#REF!)),\"\",\nIF(E22=\"Monofásico(M1)\",\"50\",\nIF(E22=\"Bifásico(B1)\",\"50\",\nIF(E22=\"Trifásico(T1)\",\"63\",\nIF(E22=\"Monofásico(M3)\",\"50\",\nIF(E22=\"Trifásico(T6)\",\"63\",\n\"Rever a carga/demanda\"))))))","v":""},{"$f":"IF(OR(ISBLANK(D22),ISBLANK(E22),ISBLANK(F22),ISBLANK(G22),ISBLANK(H22),ISBLANK(I22),ISBLANK(#REF!),ISBLANK(#REF!)),\"\",\nIF(E22=\"Monofásico(M1)\",\"CU 1x10(10)mm² XLPE/HEPR ou CU 1x16(16) PVC\",\nIF(E22=\"Bifásico(B1)\",\"CU 2x16(16)mm² XLPE/HEPR/PVC\",\nIF(E22=\"Trifásico(T1)\",\"CU 3x25(25)mm² XLPE/HEPR/PVC\",\nIF(E22=\"Monofásico(M3)\",\"CU 1x10(10)mm² XLPE/HEPR ou CU 1x16(16) PVC\",\nIF(E22=\"Trifásico(T6)\",\"CU 3x25(25)mm² XLPE/HEPR/PVC\",\n\"Rever a carga/demanda\"))))))","v":""},{"$f":"IF(OR(ISBLANK(D22),ISBLANK(E22),ISBLANK(F22),ISBLANK(G22),ISBLANK(H22),ISBLANK(I22),ISBLANK(#REF!),ISBLANK(#REF!)),\"\",\nIF(E22=\"Monofásico(M1)\",\"1 ¼ - 40 mm\",\nIF(E22=\"Bifásico(B1)\",\"1 ¼ - 40mm\",\nIF(E22=\"Trifásico(T1)\",\"1 ¼ - 40mm\",\nIF(E22=\"Monofásico(M3)\",\"1 ¼ - 40 mm\",\nIF(E22=\"Trifásico(T6)\",\"1 ¼ - 40mm\",\n\"Rever a carga/demanda\"))))))","v":""},2,{"$f":"IF(AND(ISBLANK(E22),ISBLANK(D22), ISBLANK(I22), ISBLANK(F22), ISBLANK(#REF!)), \"0\", IF(OR(ISBLANK(E22), ISBLANK(F22), ISBLANK(#REF!),J22=\"\"), \"1\", IF(AND(E22= \"Trifásico\", OR(ISBLANK(F22), ISBLANK(#REF!), ISBLANK(#REF!))), \"1\", \"2\")))","v":"1"}]
[null,0,14,null,null,null,null,null,null,{"$f":"IF(OR(ISBLANK(D23),ISBLANK(E23),ISBLANK(F23),ISBLANK(G23),ISBLANK(H23),ISBLANK(I23),ISBLANK(#REF!),ISBLANK(#REF!)),\"\",\nIF(E23=\"Monofásico(M1)\",\"50\",\nIF(E23=\"Bifásico(B1)\",\"50\",\nIF(E23=\"Trifásico(T1)\",\"63\",\nIF(E23=\"Monofásico(M3)\",\"50\",\nIF(E23=\"Trifásico(T6)\",\"63\",\n\"Rever a carga/demanda\"))))))","v":""},{"$f":"IF(OR(ISBLANK(D23),ISBLANK(E23),ISBLANK(F23),ISBLANK(G23),ISBLANK(H23),ISBLANK(I23),ISBLANK(#REF!),ISBLANK(#REF!)),\"\",\nIF(E23=\"Monofásico(M1)\",\"CU 1x10(10)mm² XLPE/HEPR ou CU 1x16(16) PVC\",\nIF(E23=\"Bifásico(B1)\",\"CU 2x16(16)mm² XLPE/HEPR/PVC\",\nIF(E23=\"Trifásico(T1)\",\"CU 3x25(25)mm² XLPE/HEPR/PVC\",\nIF(E23=\"Monofásico(M3)\",\"CU 1x10(10)mm² XLPE/HEPR ou CU 1x16(16) PVC\",\nIF(E23=\"Trifásico(T6)\",\"CU 3x25(25)mm² XLPE/HEPR/PVC\",\n\"Rever a carga/demanda\"))))))","v":""},{"$f":"IF(OR(ISBLANK(D23),ISBLANK(E23),ISBLANK(F23),ISBLANK(G23),ISBLANK(H23),ISBLANK(I23),ISBLANK(#REF!),ISBLANK(#REF!)),\"\",\nIF(E23=\"Monofásico(M1)\",\"1 ¼ - 40 mm\",\nIF(E23=\"Bifásico(B1)\",\"1 ¼ - 40mm\",\nIF(E23=\"Trifásico(T1)\",\"1 ¼ - 40mm\",\nIF(E23=\"Monofásico(M3)\",\"1 ¼ - 40 mm\",\nIF(E23=\"Trifásico(T6)\",\"1 ¼ - 40mm\",\n\"Rever a carga/demanda\"))))))","v":""},2,{"$f":"IF(AND(ISBLANK(E23),ISBLANK(D23), ISBLANK(I23), ISBLANK(F23), ISBLANK(#REF!)), \"0\", IF(OR(ISBLANK(E23), ISBLANK(F23), ISBLANK(#REF!),J23=\"\"), \"1\", IF(AND(E23= \"Trifásico\", OR(ISBLANK(F23), ISBLANK(#REF!), ISBLANK(#REF!))), \"1\", \"2\")))","v":"1"}]
[null,0,15,null,null,null,null,null,null,{"$f":"IF(OR(ISBLANK(D24),ISBLANK(E24),ISBLANK(F24),ISBLANK(G24),ISBLANK(H24),ISBLANK(I24),ISBLANK(#REF!),ISBLANK(#REF!)),\"\",\nIF(E24=\"Monofásico(M1)\",\"50\",\nIF(E24=\"Bifásico(B1)\",\"50\",\nIF(E24=\"Trifásico(T1)\",\"63\",\nIF(E24=\"Monofásico(M3)\",\"50\",\nIF(E24=\"Trifásico(T6)\",\"63\",\n\"Rever a carga/demanda\"))))))","v":""},{"$f":"IF(OR(ISBLANK(D24),ISBLANK(E24),ISBLANK(F24),ISBLANK(G24),ISBLANK(H24),ISBLANK(I24),ISBLANK(#REF!),ISBLANK(#REF!)),\"\",\nIF(E24=\"Monofásico(M1)\",\"CU 1x10(10)mm² XLPE/HEPR ou CU 1x16(16) PVC\",\nIF(E24=\"Bifásico(B1)\",\"CU 2x16(16)mm² XLPE/HEPR/PVC\",\nIF(E24=\"Trifásico(T1)\",\"CU 3x25(25)mm² XLPE/HEPR/PVC\",\nIF(E24=\"Monofásico(M3)\",\"CU 1x10(10)mm² XLPE/HEPR ou CU 1x16(16) PVC\",\nIF(E24=\"Trifásico(T6)\",\"CU 3x25(25)mm² XLPE/HEPR/PVC\",\n\"Rever a carga/demanda\"))))))","v":""},{"$f":"IF(OR(ISBLANK(D24),ISBLANK(E24),ISBLANK(F24),ISBLANK(G24),ISBLANK(H24),ISBLANK(I24),ISBLANK(#REF!),ISBLANK(#REF!)),\"\",\nIF(E24=\"Monofásico(M1)\",\"1 ¼ - 40 mm\",\nIF(E24=\"Bifásico(B1)\",\"1 ¼ - 40mm\",\nIF(E24=\"Trifásico(T1)\",\"1 ¼ - 40mm\",\nIF(E24=\"Monofásico(M3)\",\"1 ¼ - 40 mm\",\nIF(E24=\"Trifásico(T6)\",\"1 ¼ - 40mm\",\n\"Rever a carga/demanda\"))))))","v":""},2,{"$f":"IF(AND(ISBLANK(E24),ISBLANK(D24), ISBLANK(I24), ISBLANK(F24), ISBLANK(#REF!)), \"0\", IF(OR(ISBLANK(E24), ISBLANK(F24), ISBLANK(#REF!),J24=\"\"), \"1\", IF(AND(E24= \"Trifásico\", OR(ISBLANK(F24), ISBLANK(#REF!), ISBLANK(#REF!))), \"1\", \"2\")))","v":"1"}]
[null,0,16,null,null,null,null,null,null,{"$f":"IF(OR(ISBLANK(D25),ISBLANK(E25),ISBLANK(F25),ISBLANK(G25),ISBLANK(H25),ISBLANK(I25),ISBLANK(#REF!),ISBLANK(#REF!)),\"\",\nIF(E25=\"Monofásico(M1)\",\"50\",\nIF(E25=\"Bifásico(B1)\",\"50\",\nIF(E25=\"Trifásico(T1)\",\"63\",\nIF(E25=\"Monofásico(M3)\",\"50\",\nIF(E25=\"Trifásico(T6)\",\"63\",\n\"Rever a carga/demanda\"))))))","v":""},{"$f":"IF(OR(ISBLANK(D25),ISBLANK(E25),ISBLANK(F25),ISBLANK(G25),ISBLANK(H25),ISBLANK(I25),ISBLANK(#REF!),ISBLANK(#REF!)),\"\",\nIF(E25=\"Monofásico(M1)\",\"CU 1x10(10)mm² XLPE/HEPR ou CU 1x16(16) PVC\",\nIF(E25=\"Bifásico(B1)\",\"CU 2x16(16)mm² XLPE/HEPR/PVC\",\nIF(E25=\"Trifásico(T1)\",\"CU 3x25(25)mm² XLPE/HEPR/PVC\",\nIF(E25=\"Monofásico(M3)\",\"CU 1x10(10)mm² XLPE/HEPR ou CU 1x16(16) PVC\",\nIF(E25=\"Trifásico(T6)\",\"CU 3x25(25)mm² XLPE/HEPR/PVC\",\n\"Rever a carga/demanda\"))))))","v":""},{"$f":"IF(OR(ISBLANK(D25),ISBLANK(E25),ISBLANK(F25),ISBLANK(G25),ISBLANK(H25),ISBLANK(I25),ISBLANK(#REF!),ISBLANK(#REF!)),\"\",\nIF(E25=\"Monofásico(M1)\",\"1 ¼ - 40 mm\",\nIF(E25=\"Bifásico(B1)\",\"1 ¼ - 40mm\",\nIF(E25=\"Trifásico(T1)\",\"1 ¼ - 40mm\",\nIF(E25=\"Monofásico(M3)\",\"1 ¼ - 40 mm\",\nIF(E25=\"Trifásico(T6)\",\"1 ¼ - 40mm\",\n\"Rever a carga/demanda\"))))))","v":""},2,{"$f":"IF(AND(ISBLANK(E25),ISBLANK(D25), ISBLANK(I25), ISBLANK(F25), ISBLANK(#REF!)), \"0\", IF(OR(ISBLANK(E25), ISBLANK(F25), ISBLANK(#REF!),J25=\"\"), \"1\", IF(AND(E25= \"Trifásico\", OR(ISBLANK(F25), ISBLANK(#REF!), ISBLANK(#REF!))), \"1\", \"2\")))","v":"1"}]
[null,0,17,null,null,null,null,null,null,{"$f":"IF(OR(ISBLANK(D26),ISBLANK(E26),ISBLANK(F26),ISBLANK(G26),ISBLANK(H26),ISBLANK(I26),ISBLANK(#REF!),ISBLANK(#REF!)),\"\",\nIF(E26=\"Monofásico(M1)\",\"50\",\nIF(E26=\"Bifásico(B1)\",\"50\",\nIF(E26=\"Trifásico(T1)\",\"63\",\nIF(E26=\"Monofásico(M3)\",\"50\",\nIF(E26=\"Trifásico(T6)\",\"63\",\n\"Rever a carga/demanda\"))))))","v":""},{"$f":"IF(OR(ISBLANK(D26),ISBLANK(E26),ISBLANK(F26),ISBLANK(G26),ISBLANK(H26),ISBLANK(I26),ISBLANK(#REF!),ISBLANK(#REF!)),\"\",\nIF(E26=\"Monofásico(M1)\",\"CU 1x10(10)mm² XLPE/HEPR ou CU 1x16(16) PVC\",\nIF(E26=\"Bifásico(B1)\",\"CU 2x16(16)mm² XLPE/HEPR/PVC\",\nIF(E26=\"Trifásico(T1)\",\"CU 3x25(25)mm² XLPE/HEPR/PVC\",\nIF(E26=\"Monofásico(M3)\",\"CU 1x10(10)mm² XLPE/HEPR ou CU 1x16(16) PVC\",\nIF(E26=\"Trifásico(T6)\",\"CU 3x25(25)mm² XLPE/HEPR/PVC\",\n\"Rever a carga/demanda\"))))))","v":""},{"$f":"IF(OR(ISBLANK(D26),ISBLANK(E26),ISBLANK(F26),ISBLANK(G26),ISBLANK(H26),ISBLANK(I26),ISBLANK(#REF!),ISBLANK(#REF!)),\"\",\nIF(E26=\"Monofásico(M1)\",\"1 ¼ - 40 mm\",\nIF(E26=\"Bifásico(B1)\",\"1 ¼ - 40mm\",\nIF(E26=\"Trifásico(T1)\",\"1 ¼ - 40mm\",\nIF(E26=\"Monofásico(M3)\",\"1 ¼ - 40 mm\",\nIF(E26=\"Trifásico(T6)\",\"1 ¼ - 40mm\",\n\"Rever a carga/demanda\"))))))","v":""},2,{"$f":"IF(AND(ISBLANK(E26),ISBLANK(D26), ISBLANK(I26), ISBLANK(F26), ISBLANK(#REF!)), \"0\", IF(OR(ISBLANK(E26), ISBLANK(F26), ISBLANK(#REF!),J26=\"\"), \"1\", IF(AND(E26= \"Trifásico\", OR(ISBLANK(F26), ISBLANK(#REF!), ISBLANK(#REF!))), \"1\", \"2\")))","v":"1"}]
[null,0,18,null,null,null,null,null,null,{"$f":"IF(OR(ISBLANK(D27),ISBLANK(E27),ISBLANK(F27),ISBLANK(G27),ISBLANK(H27),ISBLANK(I27),ISBLANK(#REF!),ISBLANK(#REF!)),\"\",\nIF(E27=\"Monofásico(M1)\",\"50\",\nIF(E27=\"Bifásico(B1)\",\"50\",\nIF(E27=\"Trifásico(T1)\",\"63\",\nIF(E27=\"Monofásico(M3)\",\"50\",\nIF(E27=\"Trifásico(T6)\",\"63\",\n\"Rever a carga/demanda\"))))))","v":""},{"$f":"IF(OR(ISBLANK(D27),ISBLANK(E27),ISBLANK(F27),ISBLANK(G27),ISBLANK(H27),ISBLANK(I27),ISBLANK(#REF!),ISBLANK(#REF!)),\"\",\nIF(E27=\"Monofásico(M1)\",\"CU 1x10(10)mm² XLPE/HEPR ou CU 1x16(16) PVC\",\nIF(E27=\"Bifásico(B1)\",\"CU 2x16(16)mm² XLPE/HEPR/PVC\",\nIF(E27=\"Trifásico(T1)\",\"CU 3x25(25)mm² XLPE/HEPR/PVC\",\nIF(E27=\"Monofásico(M3)\",\"CU 1x10(10)mm² XLPE/HEPR ou CU 1x16(16) PVC\",\nIF(E27=\"Trifásico(T6)\",\"CU 3x25(25)mm² XLPE/HEPR/PVC\",\n\"Rever a carga/demanda\"))))))","v":""},{"$f":"IF(OR(ISBLANK(D27),ISBLANK(E27),ISBLANK(F27),ISBLANK(G27),ISBLANK(H27),ISBLANK(I27),ISBLANK(#REF!),ISBLANK(#REF!)),\"\",\nIF(E27=\"Monofásico(M1)\",\"1 ¼ - 40 mm\",\nIF(E27=\"Bifásico(B1)\",\"1 ¼ - 40mm\",\nIF(E27=\"Trifásico(T1)\",\"1 ¼ - 40mm\",\nIF(E27=\"Monofásico(M3)\",\"1 ¼ - 40 mm\",\nIF(E27=\"Trifásico(T6)\",\"1 ¼ - 40mm\",\n\"Rever a carga/demanda\"))))))","v":""},2,{"$f":"IF(AND(ISBLANK(E27),ISBLANK(D27), ISBLANK(I27), ISBLANK(F27), ISBLANK(#REF!)), \"0\", IF(OR(ISBLANK(E27), ISBLANK(F27), ISBLANK(#REF!),J27=\"\"), \"1\", IF(AND(E27= \"Trifásico\", OR(ISBLANK(F27), ISBLANK(#REF!), ISBLANK(#REF!))), \"1\", \"2\")))","v":"1"}]
[null,0,19,null,null,null,null,null,null,{"$f":"IF(OR(ISBLANK(D28),ISBLANK(E28),ISBLANK(F28),ISBLANK(G28),ISBLANK(H28),ISBLANK(I28),ISBLANK(#REF!),ISBLANK(#REF!)),\"\",\nIF(E28=\"Monofásico(M1)\",\"50\",\nIF(E28=\"Bifásico(B1)\",\"50\",\nIF(E28=\"Trifásico(T1)\",\"63\",\nIF(E28=\"Monofásico(M3)\",\"50\",\nIF(E28=\"Trifásico(T6)\",\"63\",\n\"Rever a carga/demanda\"))))))","v":""},{"$f":"IF(OR(ISBLANK(D28),ISBLANK(E28),ISBLANK(F28),ISBLANK(G28),ISBLANK(H28),ISBLANK(I28),ISBLANK(#REF!),ISBLANK(#REF!)),\"\",\nIF(E28=\"Monofásico(M1)\",\"CU 1x10(10)mm² XLPE/HEPR ou CU 1x16(16) PVC\",\nIF(E28=\"Bifásico(B1)\",\"CU 2x16(16)mm² XLPE/HEPR/PVC\",\nIF(E28=\"Trifásico(T1)\",\"CU 3x25(25)mm² XLPE/HEPR/PVC\",\nIF(E28=\"Monofásico(M3)\",\"CU 1x10(10)mm² XLPE/HEPR ou CU 1x16(16) PVC\",\nIF(E28=\"Trifásico(T6)\",\"CU 3x25(25)mm² XLPE/HEPR/PVC\",\n\"Rever a carga/demanda\"))))))","v":""},{"$f":"IF(OR(ISBLANK(D28),ISBLANK(E28),ISBLANK(F28),ISBLANK(G28),ISBLANK(H28),ISBLANK(I28),ISBLANK(#REF!),ISBLANK(#REF!)),\"\",\nIF(E28=\"Monofásico(M1)\",\"1 ¼ - 40 mm\",\nIF(E28=\"Bifásico(B1)\",\"1 ¼ - 40mm\",\nIF(E28=\"Trifásico(T1)\",\"1 ¼ - 40mm\",\nIF(E28=\"Monofásico(M3)\",\"1 ¼ - 40 mm\",\nIF(E28=\"Trifásico(T6)\",\"1 ¼ - 40mm\",\n\"Rever a carga/demanda\"))))))","v":""},2,{"$f":"IF(AND(ISBLANK(E28),ISBLANK(D28), ISBLANK(I28), ISBLANK(F28), ISBLANK(#REF!)), \"0\", IF(OR(ISBLANK(E28), ISBLANK(F28), ISBLANK(#REF!),J28=\"\"), \"1\", IF(AND(E28= \"Trifásico\", OR(ISBLANK(F28), ISBLANK(#REF!), ISBLANK(#REF!))), \"1\", \"2\")))","v":"1"}]
[null,0,20,null,null,null,null,null,null,{"$f":"IF(OR(ISBLANK(D29),ISBLANK(E29),ISBLANK(F29),ISBLANK(G29),ISBLANK(H29),ISBLANK(I29),ISBLANK(#REF!),ISBLANK(#REF!)),\"\",\nIF(E29=\"Monofásico(M1)\",\"50\",\nIF(E29=\"Bifásico(B1)\",\"50\",\nIF(E29=\"Trifásico(T1)\",\"63\",\nIF(E29=\"Monofásico(M3)\",\"50\",\nIF(E29=\"Trifásico(T6)\",\"63\",\n\"Rever a carga/demanda\"))))))","v":""},{"$f":"IF(OR(ISBLANK(D29),ISBLANK(E29),ISBLANK(F29),ISBLANK(G29),ISBLANK(H29),ISBLANK(I29),ISBLANK(#REF!),ISBLANK(#REF!)),\"\",\nIF(E29=\"Monofásico(M1)\",\"CU 1x10(10)mm² XLPE/HEPR ou CU 1x16(16) PVC\",\nIF(E29=\"Bifásico(B1)\",\"CU 2x16(16)mm² XLPE/HEPR/PVC\",\nIF(E29=\"Trifásico(T1)\",\"CU 3x25(25)mm² XLPE/HEPR/PVC\",\nIF(E29=\"Monofásico(M3)\",\"CU 1x10(10)mm² XLPE/HEPR ou CU 1x16(16) PVC\",\nIF(E29=\"Trifásico(T6)\",\"CU 3x25(25)mm² XLPE/HEPR/PVC\",\n\"Rever a carga/demanda\"))))))","v":""},{"$f":"IF(OR(ISBLANK(D29),ISBLANK(E29),ISBLANK(F29),ISBLANK(G29),ISBLANK(H29),ISBLANK(I29),ISBLANK(#REF!),ISBLANK(#REF!)),\"\",\nIF(E29=\"Monofásico(M1)\",\"1 ¼ - 40 mm\",\nIF(E29=\"Bifásico(B1)\",\"1 ¼ - 40mm\",\nIF(E29=\"Trifásico(T1)\",\"1 ¼ - 40mm\",\nIF(E29=\"Monofásico(M3)\",\"1 ¼ - 40 mm\",\nIF(E29=\"Trifásico(T6)\",\"1 ¼ - 40mm\",\n\"Rever a carga/demanda\"))))))","v":""},2,{"$f":"IF(AND(ISBLANK(E29),ISBLANK(D29), ISBLANK(I29), ISBLANK(F29), ISBLANK(#REF!)), \"0\", IF(OR(ISBLANK(E29), ISBLANK(F29), ISBLANK(#REF!),J29=\"\"), \"1\", IF(AND(E29= \"Trifásico\", OR(ISBLANK(F29), ISBLANK(#REF!), ISBLANK(#REF!))), \"1\", \"2\")))","v":"1"}]
[null,0,21,null,null,null,null,null,null,{"$f":"IF(OR(ISBLANK(D30),ISBLANK(E30),ISBLANK(F30),ISBLANK(G30),ISBLANK(H30),ISBLANK(I30),ISBLANK(#REF!),ISBLANK(#REF!)),\"\",\nIF(E30=\"Monofásico(M1)\",\"50\",\nIF(E30=\"Bifásico(B1)\",\"50\",\nIF(E30=\"Trifásico(T1)\",\"63\",\nIF(E30=\"Monofásico(M3)\",\"50\",\nIF(E30=\"Trifásico(T6)\",\"63\",\n\"Rever a carga/demanda\"))))))","v":""},{"$f":"IF(OR(ISBLANK(D30),ISBLANK(E30),ISBLANK(F30),ISBLANK(G30),ISBLANK(H30),ISBLANK(I30),ISBLANK(#REF!),ISBLANK(#REF!)),\"\",\nIF(E30=\"Monofásico(M1)\",\"CU 1x10(10)mm² XLPE/HEPR ou CU 1x16(16) PVC\",\nIF(E30=\"Bifásico(B1)\",\"CU 2x16(16)mm² XLPE/HEPR/PVC\",\nIF(E30=\"Trifásico(T1)\",\"CU 3x25(25)mm² XLPE/HEPR/PVC\",\nIF(E30=\"Monofásico(M3)\",\"CU 1x10(10)mm² XLPE/HEPR ou CU 1x16(16) PVC\",\nIF(E30=\"Trifásico(T6)\",\"CU 3x25(25)mm² XLPE/HEPR/PVC\",\n\"Rever a carga/demanda\"))))))","v":""},{"$f":"IF(OR(ISBLANK(D30),ISBLANK(E30),ISBLANK(F30),ISBLANK(G30),ISBLANK(H30),ISBLANK(I30),ISBLANK(#REF!),ISBLANK(#REF!)),\"\",\nIF(E30=\"Monofásico(M1)\",\"1 ¼ - 40 mm\",\nIF(E30=\"Bifásico(B1)\",\"1 ¼ - 40mm\",\nIF(E30=\"Trifásico(T1)\",\"1 ¼ - 40mm\",\nIF(E30=\"Monofásico(M3)\",\"1 ¼ - 40 mm\",\nIF(E30=\"Trifásico(T6)\",\"1 ¼ - 40mm\",\n\"Rever a carga/demanda\"))))))","v":""},2,{"$f":"IF(AND(ISBLANK(E30),ISBLANK(D30), ISBLANK(I30), ISBLANK(F30), ISBLANK(#REF!)), \"0\", IF(OR(ISBLANK(E30), ISBLANK(F30), ISBLANK(#REF!),J30=\"\"), \"1\", IF(AND(E30= \"Trifásico\", OR(ISBLANK(F30), ISBLANK(#REF!), ISBLANK(#REF!))), \"1\", \"2\")))","v":"1"}]
[null,0,22,null,null,null,null,null,null,{"$f":"IF(OR(ISBLANK(D31),ISBLANK(E31),ISBLANK(F31),ISBLANK(G31),ISBLANK(H31),ISBLANK(I31),ISBLANK(#REF!),ISBLANK(#REF!)),\"\",\nIF(E31=\"Monofásico(M1)\",\"50\",\nIF(E31=\"Bifásico(B1)\",\"50\",\nIF(E31=\"Trifásico(T1)\",\"63\",\nIF(E31=\"Monofásico(M3)\",\"50\",\nIF(E31=\"Trifásico(T6)\",\"63\",\n\"Rever a carga/demanda\"))))))","v":""},{"$f":"IF(OR(ISBLANK(D31),ISBLANK(E31),ISBLANK(F31),ISBLANK(G31),ISBLANK(H31),ISBLANK(I31),ISBLANK(#REF!),ISBLANK(#REF!)),\"\",\nIF(E31=\"Monofásico(M1)\",\"CU 1x10(10)mm² XLPE/HEPR ou CU 1x16(16) PVC\",\nIF(E31=\"Bifásico(B1)\",\"CU 2x16(16)mm² XLPE/HEPR/PVC\",\nIF(E31=\"Trifásico(T1)\",\"CU 3x25(25)mm² XLPE/HEPR/PVC\",\nIF(E31=\"Monofásico(M3)\",\"CU 1x10(10)mm² XLPE/HEPR ou CU 1x16(16) PVC\",\nIF(E31=\"Trifásico(T6)\",\"CU 3x25(25)mm² XLPE/HEPR/PVC\",\n\"Rever a carga/demanda\"))))))","v":""},{"$f":"IF(OR(ISBLANK(D31),ISBLANK(E31),ISBLANK(F31),ISBLANK(G31),ISBLANK(H31),ISBLANK(I31),ISBLANK(#REF!),ISBLANK(#REF!)),\"\",\nIF(E31=\"Monofásico(M1)\",\"1 ¼ - 40 mm\",\nIF(E31=\"Bifásico(B1)\",\"1 ¼ - 40mm\",\nIF(E31=\"Trifásico(T1)\",\"1 ¼ - 40mm\",\nIF(E31=\"Monofásico(M3)\",\"1 ¼ - 40 mm\",\nIF(E31=\"Trifásico(T6)\",\"1 ¼ - 40mm\",\n\"Rever a carga/demanda\"))))))","v":""},2,{"$f":"IF(AND(ISBLANK(E31),ISBLANK(D31), ISBLANK(I31), ISBLANK(F31), ISBLANK(#REF!)), \"0\", IF(OR(ISBLANK(E31), ISBLANK(F31), ISBLANK(#REF!),J31=\"\"), \"1\", IF(AND(E31= \"Trifásico\", OR(ISBLANK(F31), ISBLANK(#REF!), ISBLANK(#REF!))), \"1\", \"2\")))","v":"1"}]
[null,0,23,null,null,null,null,null,null,{"$f":"IF(OR(ISBLANK(D32),ISBLANK(E32),ISBLANK(F32),ISBLANK(G32),ISBLANK(H32),ISBLANK(I32),ISBLANK(#REF!),ISBLANK(#REF!)),\"\",\nIF(E32=\"Monofásico(M1)\",\"50\",\nIF(E32=\"Bifásico(B1)\",\"50\",\nIF(E32=\"Trifásico(T1)\",\"63\",\nIF(E32=\"Monofásico(M3)\",\"50\",\nIF(E32=\"Trifásico(T6)\",\"63\",\n\"Rever a carga/demanda\"))))))","v":""},{"$f":"IF(OR(ISBLANK(D32),ISBLANK(E32),ISBLANK(F32),ISBLANK(G32),ISBLANK(H32),ISBLANK(I32),ISBLANK(#REF!),ISBLANK(#REF!)),\"\",\nIF(E32=\"Monofásico(M1)\",\"CU 1x10(10)mm² XLPE/HEPR ou CU 1x16(16) PVC\",\nIF(E32=\"Bifásico(B1)\",\"CU 2x16(16)mm² XLPE/HEPR/PVC\",\nIF(E32=\"Trifásico(T1)\",\"CU 3x25(25)mm² XLPE/HEPR/PVC\",\nIF(E32=\"Monofásico(M3)\",\"CU 1x10(10)mm² XLPE/HEPR ou CU 1x16(16) PVC\",\nIF(E32=\"Trifásico(T6)\",\"CU 3x25(25)mm² XLPE/HEPR/PVC\",\n\"Rever a carga/demanda\"))))))","v":""},{"$f":"IF(OR(ISBLANK(D32),ISBLANK(E32),ISBLANK(F32),ISBLANK(G32),ISBLANK(H32),ISBLANK(I32),ISBLANK(#REF!),ISBLANK(#REF!)),\"\",\nIF(E32=\"Monofásico(M1)\",\"1 ¼ - 40 mm\",\nIF(E32=\"Bifásico(B1)\",\"1 ¼ - 40mm\",\nIF(E32=\"Trifásico(T1)\",\"1 ¼ - 40mm\",\nIF(E32=\"Monofásico(M3)\",\"1 ¼ - 40 mm\",\nIF(E32=\"Trifásico(T6)\",\"1 ¼ - 40mm\",\n\"Rever a carga/demanda\"))))))","v":""},2,{"$f":"IF(AND(ISBLANK(E32),ISBLANK(D32), ISBLANK(I32), ISBLANK(F32), ISBLANK(#REF!)), \"0\", IF(OR(ISBLANK(E32), ISBLANK(F32), ISBLANK(#REF!),J32=\"\"), \"1\", IF(AND(E32= \"Trifásico\", OR(ISBLANK(F32), ISBLANK(#REF!), ISBLANK(#REF!))), \"1\", \"2\")))","v":"1"}]
[null,0,24,null,null,null,null,null,null,{"$f":"IF(OR(ISBLANK(D33),ISBLANK(E33),ISBLANK(F33),ISBLANK(G33),ISBLANK(H33),ISBLANK(I33),ISBLANK(#REF!),ISBLANK(#REF!)),\"\",\nIF(E33=\"Monofásico(M1)\",\"50\",\nIF(E33=\"Bifásico(B1)\",\"50\",\nIF(E33=\"Trifásico(T1)\",\"63\",\nIF(E33=\"Monofásico(M3)\",\"50\",\nIF(E33=\"Trifásico(T6)\",\"63\",\n\"Rever a carga/demanda\"))))))","v":""},{"$f":"IF(OR(ISBLANK(D33),ISBLANK(E33),ISBLANK(F33),ISBLANK(G33),ISBLANK(H33),ISBLANK(I33),ISBLANK(#REF!),ISBLANK(#REF!)),\"\",\nIF(E33=\"Monofásico(M1)\",\"CU 1x10(10)mm² XLPE/HEPR ou CU 1x16(16) PVC\",\nIF(E33=\"Bifásico(B1)\",\"CU 2x16(16)mm² XLPE/HEPR/PVC\",\nIF(E33=\"Trifásico(T1)\",\"CU 3x25(25)mm² XLPE/HEPR/PVC\",\nIF(E33=\"Monofásico(M3)\",\"CU 1x10(10)mm² XLPE/HEPR ou CU 1x16(16) PVC\",\nIF(E33=\"Trifásico(T6)\",\"CU 3x25(25)mm² XLPE/HEPR/PVC\",\n\"Rever a carga/demanda\"))))))","v":""},{"$f":"IF(OR(ISBLANK(D33),ISBLANK(E33),ISBLANK(F33),ISBLANK(G33),ISBLANK(H33),ISBLANK(I33),ISBLANK(#REF!),ISBLANK(#REF!)),\"\",\nIF(E33=\"Monofásico(M1)\",\"1 ¼ - 40 mm\",\nIF(E33=\"Bifásico(B1)\",\"1 ¼ - 40mm\",\nIF(E33=\"Trifásico(T1)\",\"1 ¼ - 40mm\",\nIF(E33=\"Monofásico(M3)\",\"1 ¼ - 40 mm\",\nIF(E33=\"Trifásico(T6)\",\"1 ¼ - 40mm\",\n\"Rever a carga/demanda\"))))))","v":""},2,{"$f":"IF(AND(ISBLANK(E33),ISBLANK(D33), ISBLANK(I33), ISBLANK(F33), ISBLANK(#REF!)), \"0\", IF(OR(ISBLANK(E33), ISBLANK(F33), ISBLANK(#REF!),J33=\"\"), \"1\", IF(AND(E33= \"Trifásico\", OR(ISBLANK(F33), ISBLANK(#REF!), ISBLANK(#REF!))), \"1\", \"2\")))","v":"1"}]
[null,{"$f":"SUM(B10:B33)","v":0},null,null,null,null,null,null,null,null,null,null,5,{"$f":"IF(#REF!=TRUE, \"2\", IF(OR(B37= \"1\", N10= \"1\",N11= \"1\",N12= \"1\",N13= \"1\",N14= \"1\",N15= \"1\",N16= \"1\",N17= \"1\",N18= \"1\",N19= \"1\",N20= \"1\",N21= \"1\",N22= \"1\",N23= \"1\",N24= \"1\",N25= \"1\",N26= \"1\",N27= \"1\",N28= \"1\",N29= \"1\",N30= \"1\",N31= \"1\",N32= \"1\",N33= \"1\"), \"1\", IF(AND(N10= \"0\", N11= \"0\",N12= \"0\",N13= \"0\",N14= \"0\",N15= \"0\",N16= \"0\",N17= \"0\",N18= \"0\",N19= \"0\",N20= \"0\",N21= \"0\",N22= \"0\",N23= \"0\",N24= \"0\",N25= \"0\",N26= \"0\",N27= \"0\",N28= \"0\",N29= \"0\",N30= \"0\",N31= \"0\",N32= \"0\",N33= \"0\"),\"0\",\"2\")))","v":{"$error":"#REF!"}}]
[null,null,null,null,null,null,null,null,null,null,"Falha ao Gerar Formulário",null,null,{"$f":"N34+M34","v":{"$error":"#REF!"}}]
[null,null,null,null,null,null,null,null,null,null,"Formulário Preenchido com sucesso"]
[null,{"$f":"IF(C34=\"\",\"2\",\"1\")","v":"2"}]

{"sheet":"Tabelas","index":8,"n_rows":24,"n_cols":13,"rows_kept":24,"cut":false,"hidden":true,"merged":[[1,12,8,17]]}
[null,null,"220/127","380/220"]
[null,null,"Monofásico(M1)","Monofásico(M3)",null,null,null,1,"Apartamento",{"$f":"COUNTIF(PAGE5!F10:F33,\"Apartamento\")","v":0},null,null,{"$f":"CONCATENATE(\"Trata-se de Medição Coletiva isento de projeto, para atender \",#REF!,\" medições; com demanda total de \",#REF!, \"kVA ;\", \"  categoria de agrupamento \",#REF!,\" e tensão de fornecimento \",#REF!,\"V \", \" Das medições, são: \", Tabelas!J2,\" Apartamentos,\", \" com área média de \", C15,\" m² , \", Tabelas!J4,\" Condomínio/Administração; \", Tabelas!J5,\" Bomba de Incêndio; \",J6,\" Salas; \", J3,\" Lojas; \", J7, \" Boxes. \")","v":{"$error":"#REF!"}}]
[null,null,"Bifásico(B1)","Trifásico(T6)",null,null,null,1,"Loja",{"$f":"COUNTIF(PAGE5!F10:F33,\"Loja\")","v":0}]
[null,null,"Trifásico(T1)",null,null,null,null,1,"Condomínio",{"$f":"COUNTIF(PAGE5!F10:F33,\"Condomínio\")","v":0}]
[null,null,null,null,null,null,null,1,"Bomba de Incêncio",{"$f":"COUNTIF(PAGE5!F10:F33,\"Bomba de Incêndio\")","v":0}]
[null,null,null,null,null,null,null,1,"Sala",{"$f":"COUNTIF(PAGE5!F10:F33,\"Sala\")","v":0}]
[null,null,null,null,null,null,null,3,"Box",{"$f":"COUNTIF(PAGE5!F10:F33,\"Box\")","v":0}]
[null,null,null,null,null,null,null,null,"Casa",{"$f":"COUNTIF(PAGE5!F10:F33,\"Casa\")","v":0}]
[]
[]
[]
[null,"Soma",{"$f":"SUMIF(PAGE5!F10:F33,\"Apartamento\",PAGE5!I10:I33)","v":0}]
[]
[]
[null,"MédiaSe",{"$f":"IFERROR(AVERAGEIF(PAGE5!F10:F33,\"apartamento\",PAGE5!I10:I33),0)","v":0},null,null,null,null,null,null,null,null,null,"Até 12 Medições - Barramento Lateral (esquerda)"]
[null,null,null,null,null,null,null,null,null,null,null,null,"Até 12 Medições - Barramento Lateral (direita)"]
[null,null,null,null,null,null,null,null,null,null,null,null,"Até 12 Medições - Barramento Central"]
[null,null,null,null,null,null,null,null,null,null,null,null,"Maior que 12 Medições - Barramento Central"]
[]
[]
[]
[null,null,null,null,null,null,null,null,null,null,null,null,"Não"]
[null,null,null,null,null,null,null,null,null,null,null,null,"Sim, Instalada Junto ao Centro Geral"]
[null,null,null,null,null,null,null,null,null,null,null,null,"Sim, Instalada em caixa deslocada"]

{"sheet":"DetalhesC","index":9,"n_rows":0,"n_cols":0,"rows_kept":0,"cut":false,"hidden":true,"merged":[]}